Cogmind - Beta 17 @@@ ROGUE MODE // 2026.07.22 @ 00:42:22 Player: Petvaria Result: Destroyed by G-67 Veteran with Field Laser Performance ------------- Evolutions (6) 3000 Regions Visited (28) 5600 Robots Destroyed (598) 2990 Value Destroyed (27916) 27916 Prototype IDs (50) 1000 Alien Tech Used (1) 200 Bonus (28371) 28371 TOTAL SCORE: 69077 Bonus ------- High Alert Combat Kills 6993 Follower Combat Kills 1650 Prayed to X0-1V1 5000 Major X0-1V1 Interference 11650 Awakened Behemoth Slayer 1000 Entered Garrisons 1000 Met Data Miner 300 Met Imprinter 300 Acquired ECA 300 Met Zhirov 300 Friendly Fire -122 Cogmind --------- Core Integrity 0/1300 Matter 358/800 Energy 1250/1250 System Corruption 27% Temperature Cool (24) Movement Rolling (190) Ox6 Location -4/Factory Parts ------- > --- POWER (3) -------- Micro Fission Core > --- PROPULSION (6) --- Compact Wheel > --- UTILITY (7) ------ Advanced Heat Sink Huge Storage Unit Experimental Targeting Computer Core Analyzer Graphene Brace Experimental Thermal Shield > --- WEAPON (4) ------- Rocket Array Dirty Datajack > --- INVENTORY (25) --- Improved Ion Engine Antimatter Reactor Antimatter Reactor Antimatter Reactor Antigrav System Improved Antigrav System Experimental Energy Well (600) Advanced Sensor Array Advanced Signal Interpreter Terrain Scanner Core Analyzer Advanced Recoil Stabilizer Energy Filter Layered Medium Armor Plating EM Shield High-powered Tractor Beam Hacking Drone Bay (1/1) Tesla Rifle Plasma Rifle Plasma Cutter CR-A16's Behemoth Slayer Peak State ------------ > --- POWER ------------ Cold Fusion Reactor Light Antimatter Reactor Hybrid Antimatter Reactor > --- PROPULSION ------- Improved Medium Treads Armored Medium Treads Heavy Treads Heavy Siege Treads > --- UTILITY ---------- Huge Storage Unit 0b10 Decoder Chip [Generic] Core Analyzer Layered Medium Armor Plating Advanced Force Field Improved Hacking Suite X0-1V1's Piety Tracker > --- WEAPON ----------- Advanced Plasma Cannon Heavy Phase Cannon Heavy Phase Cannon Heavy Phase Cannon > --- INVENTORY -------- Light Antimatter Reactor Armored Heavy Treads Advanced Cooling System Advanced Cooling System Experimental Energy Well Advanced Sensor Array Advanced Signal Interpreter Experimental Targeting Computer Energy Filter Advanced Particle Charger Advanced Transmission Jammer Advanced Phase Shifter Graphene Brace Experimental Thermal Shield EM Shield Hacking Drone Bay HERF Cannon Phase Cannon Heavy Plasma Cannon Matter Neutralizer Rocket Array Mini Smartbomb Launcher Plasma Cutter CR-A16's Behemoth Slayer [Rating: 138] Favorites ----------- Power Improved Deuterium Engine Engine Improved Deuterium Engine Power Core Fission Core Reactor Cold Fusion Reactor Propulsion Light Treads Treads Light Treads Leg Carbon-fiber Leg Wheel Compact Wheel Utility Huge Storage Unit Device X0-1V1's Piety Tracker Storage Huge Storage Unit Processor Core Analyzer Hackware Improved Hacking Suite Protection Layered Medium Armor Plating Weapon Heavy Laser Energy Gun Heavy Laser Energy Cannon Heavy Particle Cannon Ballistic Gun Light Assault Rifle Launcher Advanced EMP Blaster Special Weapon Mining Laser Impact Weapon Impact Mace Slashing Weapon Makeshift Axe Piercing Weapon CR-A16's Behemoth Slayer Special Melee Weapon Dirty Datajack Build | -11 -10 -9 -9 -9 -8 -8 -8 -8 -8 -8 -7 -7 -7 -7 -6 -6 -6 -6 -6 -6 -6 -5 -5 -5 -5 -5 -4 -4 ------- Run | Yrd Mat Mat Sto Gar Mat Gar Mat Gar Mat Gar Fac Low Low Zio Pro Fac Gar Fac Low Low Dat Pro Fac Upp Upp Zhi Pro Fac Slots Evolved 12 | . . 2 . . 2 . . . . . 2 . . . . 2 . . . . . . 2 . . . . 2 Power 1 | . . . . . . . . . . . . . . . . . . . . . . . 1 . . . . . Propulsion 3 | . . 1 . . . . . . . . 1 . . . . 1 . . . . . . . . . . . . Utility 5 | . . 1 . . 1 . . . . . . . . . . 1 . . . . . . 1 . . . . 1 Weapon 3 | . . . . . 1 . . . . . 1 . . . . . . . . . . . . . . . . 1 Parts Attached 396 | 7 13 26 27 11 15 31 6 22 4 11 6 11 8 10 . 3 36 35 9 6 . 7 6 3 5 4 12 62 Power 49 | 1 . 4 2 2 3 6 . 1 . 3 . 1 1 . . . 5 4 1 . . 1 1 1 . . 2 10 Engine 22 | 1 . . 2 1 1 5 . 1 . 2 . 1 . . . . 3 1 . . . . . 1 . . 1 2 Core 13 | . . 4 . 1 2 1 . . . 1 . . 1 . . . . . 1 . . . . . . . . 2 Reactor 14 | . . . . . . . . . . . . . . . . . 2 3 . . . 1 1 . . . 1 6 Propulsion 115 | 2 1 8 14 4 4 10 3 8 3 1 1 5 2 . . . 12 4 1 3 . 1 . 1 . 1 2 24 Treads 95 | 2 1 8 14 4 4 10 3 8 3 1 1 5 2 . . . 7 4 1 3 . 1 . 1 . . 2 10 Leg 14 | . . . . . . . . . . . . . . . . . 5 . . . . . . . . 1 . 8 Wheel 6 | . . . . . . . . . . . . . . . . . . . . . . . . . . . . 6 Hover . | . . . . . . . . . . . . . . . . . . . . . . . . . . . . . Flight . | . . . . . . . . . . . . . . . . . . . . . . . . . . . . . Utility 141 | 2 4 8 3 4 5 9 1 10 1 4 3 3 3 2 . 1 17 18 5 2 . 3 5 1 4 3 6 14 Device 90 | 1 2 4 1 1 4 6 . 6 . 4 1 2 3 1 . . 10 14 5 1 . 1 2 1 4 1 6 9 Storage 6 | 1 2 1 . . . . . . . . . . . . . . 1 . . . . . . . . 1 . . Processor 13 | . . . . . . . . . . . 2 . . . . . 3 3 . . . 1 2 . . . . 2 Hackware 4 | . . . . 1 . . 1 . . . . . . . . 1 . . . . . . 1 . . . . . Protection 28 | . . 3 2 2 1 3 . 4 1 . . 1 . 1 . . 3 1 . 1 . 1 . . . 1 . 3 Artifact . | . . . . . . . . . . . . . . . . . . . . . . . . . . . . . Weapon 91 | 2 8 6 8 1 3 6 2 3 . 3 2 2 2 8 . 2 2 9 2 1 . 2 . . 1 . 2 14 Energy Gun 38 | 1 4 1 3 . 2 2 . 2 . 2 2 1 2 3 . . 1 4 . 1 . 1 . . . . . 6 Energy Cannon 29 | . . 1 3 1 . 4 . 1 . . . . . . . 2 . 4 2 . . 1 . . 1 . 2 7 Ballistic Gun 8 | 1 2 2 2 . . . 1 . . . . . . . . . . . . . . . . . . . . . Ballistic Cannon . | . . . . . . . . . . . . . . . . . . . . . . . . . . . . . Launcher 11 | . 1 2 . . 1 . . . . . . 1 . 4 . . . 1 . . . . . . . . . 1 Special Weapon 2 | . 1 . . . . . . . . 1 . . . . . . . . . . . . . . . . . . Impact Weapon 1 | . . . . . . . 1 . . . . . . . . . . . . . . . . . . . . . Slashing Weapon . | . . . . . . . . . . . . . . . . . . . . . . . . . . . . . Piercing Weapon 2 | . . . . . . . . . . . . . . 1 . . 1 . . . . . . . . . . . Special Melee Weapon . | . . . . . . . . . . . . . . . . . . . . . . . . . . . . . Unidentified Prototypes 26 | . 1 2 4 . 2 . 2 . . . . . . 4 . . . 4 1 . . 1 . . . 3 . 2 Corrupted Parts 3 | . . . . . . . . . . . . . 2 . . . . . . . . . . . . . . 1 System Corruption 10 | . . . . . . . . . . . . . 8 . . . . . . . . . . . . . . 2 Parts Lost 141 | . 4 5 . 8 6 15 . 6 . 2 1 5 4 . . 1 14 8 1 1 . 2 . . . . 3 55 Power 28 | . . 1 . 1 2 3 . 1 . 1 . 1 2 . . . 1 3 . . . 1 . . . . 2 9 Propulsion 52 | . 2 . . 4 1 4 . 1 . . . 2 1 . . 1 9 . 1 1 . 1 . . . . 1 23 Utility 34 | . 1 3 . 2 3 4 . 2 . . 1 1 1 . . . 2 3 . . . . . . . . . 11 Weapon 27 | . 1 1 . 1 . 4 . 2 . 1 . 1 . . . . 2 2 . . . . . . . . . 12 Highest Loss Streak 16 | . 1 2 . 6 5 5 . 2 . 1 1 4 3 . . 1 4 4 1 1 . 1 . . . . 1 16 To Critical Strikes 4 | . . . . . . . . . . . . . . . . . 1 . . 1 . . . . . . . 2 Average Backups 23 | 4 15 22 24 22 21 24 25 24 25 24 24 23 23 23 24 23 23 23 24 24 24 22 23 24 24 25 24 22 Power . | . 1 2 1 . 1 1 1 1 1 1 1 1 . . . . . . 1 1 1 . . . 1 1 . 1 Propulsion 2 | 2 2 3 5 4 2 4 4 4 5 5 4 4 3 3 3 1 . 2 2 1 1 . 1 2 2 2 1 1 Utility 11 | . 5 9 10 10 10 10 13 11 11 11 10 9 12 12 11 11 12 12 13 15 15 15 15 15 15 16 15 13 Weapon 6 | . 7 7 7 6 6 7 6 6 6 6 6 6 6 6 7 8 7 6 6 5 6 5 5 5 5 5 5 5 Tool/Special . | . . . . . . . . . . . . . . . . . . . . . . . . . . . . . Unused Backups 83 | . 5 5 8 . 1 6 3 3 2 2 . 3 2 2 1 . 5 8 . . . 3 . 5 . . . 19 Power 11 | . 1 2 1 . . . . 1 . 1 . . . . . . . . . . . 1 . . . . . 4 Propulsion 17 | . 2 2 . . . 3 2 . . . . 2 . . . . . 2 . . . . . 2 . . . 2 Utility 28 | . . . 3 . . 2 . 1 1 . . . . 1 . . 3 4 . . . 1 . 2 . . . 10 Weapon 27 | . 2 1 4 . 1 1 1 1 1 1 . 1 2 1 1 . 2 2 . . . 1 . 1 . . . 3 Tool/Special . | . . . . . . . . . . . . . . . . . . . . . . . . . . . . . Average Slot Usage (%) 93 | . 84 91 99 99 96 91 99 99 100 99 98 99 92 96 100 99 93 86 92 92 69 91 91 94 93 92 92 83 Engine 6 | . 14 . . 3 6 8 16 15 16 14 7 7 10 14 14 12 7 . . . . . . . . . 4 1 Core 2 | . . 9 9 7 8 2 . . . . 7 7 1 . . . . . 1 6 6 6 5 5 5 5 . . Reactor 3 | . . . . . . . . . . . . . . . . . 4 11 10 6 6 5 9 11 11 11 9 10 Treads 25 | . 20 24 29 29 25 24 25 31 33 32 28 27 30 35 35 37 21 21 24 24 25 25 21 22 22 21 23 17 Device 11 | . 6 19 20 11 5 14 12 15 16 21 12 11 11 8 7 11 14 11 17 14 6 6 6 5 5 3 4 11 Storage 7 | . 14 10 10 10 8 8 8 8 8 8 7 7 6 7 7 6 6 6 6 6 6 6 5 5 5 5 5 4 Processor 6 | . . . . . . . . . . . 7 9 6 7 7 6 6 13 12 12 12 11 15 16 16 16 16 9 Hackware 1 | . . . . 7 8 . 3 1 . . . . . . . . 1 . . . . . 3 5 5 5 5 3 Protection 4 | . . 5 9 9 8 7 8 7 8 3 7 6 2 5 7 6 5 1 . 1 6 5 . . . . . 2 Energy Gun 10 | . 15 6 1 . 10 17 . 2 16 15 20 20 21 14 20 14 12 12 9 5 . 14 11 11 6 4 5 2 Energy Cannon 7 | . . 3 10 19 13 6 24 14 . . . . . . . 3 5 5 6 14 . 7 11 11 13 16 13 15 Ballistic Gun 1 | . 12 10 8 . . . . . . . . . . . . . . . . . . . . . . . . . Peak Build Rating 138 | 7 22 32 37 39 44 59 59 53 52 56 60 62 60 64 60 67 113 119 105 105 96 107 115 115 118 116 121 138 Average Rating 67 | 5 7 27 34 35 36 47 52 47 49 50 57 57 54 55 59 65 90 107 101 98 83 100 106 114 114 111 113 112 On Entrance 67 | . 7 22 31 36 39 31 56 48 47 52 56 58 60 55 59 60 67 103 102 100 97 96 104 106 115 116 116 113 Avg Prop Armor Cover (%) 7 | . . . . . . . . . . 7 . 5 . . . . 6 . . . . . . . . . . 10 Naked Turns . | . . . . . . . . . . . . . . . . . . . . . . . . . . . . . Heaviest Build 184 | 13 50 101 102 105 116 145 145 144 136 137 132 130 135 123 122 127 144 149 126 134 126 137 145 144 150 152 154 184 Greatest Support 197 | 40 40 60 69 69 63 90 70 80 80 80 80 88 103 103 103 123 147 147 145 150 150 150 147 147 147 147 177 197 Greatest Overweight (x) 16 | . 16 4 1 1 1 2 2 2 1 2 1 2 1 1 1 1 2 1 . . . 1 . . 1 1 1 9 Average Overweight (x) . | . . 1 1 1 1 1 1 1 1 1 1 1 1 1 1 . . . . . . . . . . . . 1 Largest Inventory Capacity 25 | 8 20 25 25 25 25 25 25 25 25 25 25 25 25 25 25 25 25 25 25 25 25 25 25 25 25 25 25 25 Average Capacity 24 | 7 17 23 25 25 25 25 25 25 25 25 25 25 25 25 25 25 25 25 25 25 25 25 25 25 25 25 25 25 Most Carried 25 | 7 20 25 25 25 25 25 25 25 25 25 25 25 25 25 25 24 25 25 25 25 25 25 25 25 25 25 25 25 Average Carried 23 | 4 15 23 24 23 23 24 24 24 24 24 24 23 24 24 24 23 24 24 24 24 24 23 24 24 24 25 24 22 Final Capacity 25 | 8 20 25 25 25 25 25 25 25 25 25 25 25 25 25 25 25 25 25 25 25 25 25 25 25 25 25 25 25 Final Carried 25 | 6 20 25 25 24 25 25 25 25 25 25 25 25 25 24 25 24 25 25 25 23 22 25 25 25 25 25 25 21 Class Distribution -------------------- 37% | Scavenger-Tank 24% | Scavenger-Gunner 16% | Mutant 15% | Scavenger-Mutant Dominant Class ---------------- Mutant | -10/Materials Scavenger-Mutant | -9/Materials Mutant | -9/Storage Mutant | -9/Garrison Tank | -8/Materials Scavenger-Tank | -8/Garrison Scavenger-Tank | -8/Materials Scavenger-Mutant | -8/Garrison Scavenger-Mutant | -8/Materials Scavenger-Mutant | -8/Garrison Scavenger-Gunner | -7/Factory Scavenger-Gunner | -7/Lower Caves Scavenger-Gunner | -7/Lower Caves Scavenger-Gunner | -7/Zion Scavenger-Gunner | -6/Proximity Caves Scavenger-Gunner | -6/Factory Scavenger-Tank | -6/Garrison Scavenger-Tank | -6/Factory Scavenger-Tank | -6/Lower Caves Scavenger-Tank | -6/Lower Caves Scavenger-Mutant | -6/Data Miner Scavenger-Tank | -5/Proximity Caves Scavenger-Skirmisher | -5/Factory Scavenger-Tank | -5/Upper Caves Scavenger-Tank | -5/Upper Caves Scavenger-Tank | -5/Zhirov Scavenger-Tank | -4/Proximity Caves Scavenger-Tank | -4/Factory Resources | -11 -10 -9 -9 -9 -8 -8 -8 -8 -8 -8 -7 -7 -7 -7 -6 -6 -6 -6 -6 -6 -6 -5 -5 -5 -5 -5 -4 -4 ----------- Run | Yrd Mat Mat Sto Gar Mat Gar Mat Gar Mat Gar Fac Low Low Zio Pro Fac Gar Fac Low Low Dat Pro Fac Upp Upp Zhi Pro Fac Matter Collected 14508 | 264 578 1007 827 600 409 491 142 711 486 501 70 685 661 73 298 162 869 701 750 496 . 442 70 672 207 106 470 1760 Remotely . | . . . . . . . . . . . . . . . . . . . . . . . . . . . . . Salvage Created 26097 | 15 616 1460 1395 603 1570 1677 1054 1220 126 1047 185 499 715 . 156 285 1960 2916 1121 441 . 766 121 114 729 106 775 4425 Parts 1215 | 3 29 63 63 50 51 86 49 95 14 45 13 15 26 . 15 26 78 146 38 13 . 25 8 3 18 3 31 209 Haulers Intercepted 19 | . 2 4 5 . 3 . 2 . . . . . . . . . . 1 1 . . . . . . . . 1 Recyclers Shooed 16 | 1 . 2 2 . . . . . . . . . . . . 1 . 5 . . . . . . . . . 5 Parts Field Recycled . | . . . . . . . . . . . . . . . . . . . . . . . . . . . . . Retrieved Matter . | . . . . . . . . . . . . . . . . . . . . . . . . . . . . . Parts Self-Destructed 153 | . . . . . . . . . . . . 14 11 . 10 . . . 23 11 . 21 . 10 20 3 30 . Prevented 25 | . . . . . . . . . . . . . 15 . 5 . . . 5 . . . . . . . . . Parts Restored . | . . . . . . . . . . . . . . . . . . . . . . . . . . . . . Kills | -11 -10 -9 -9 -9 -8 -8 -8 -8 -8 -8 -7 -7 -7 -7 -6 -6 -6 -6 -6 -6 -6 -5 -5 -5 -5 -5 -4 -4 ------- Run | Yrd Mat Mat Sto Gar Mat Gar Mat Gar Mat Gar Fac Low Low Zio Pro Fac Gar Fac Low Low Dat Pro Fac Upp Upp Zhi Pro Fac Combat Hostiles Destroyed 487 | . 11 24 20 25 24 41 17 35 3 26 3 12 13 . 5 3 39 36 20 6 . 19 1 2 16 . 17 69 Melee 6 | . . . . . . . . . . 1 . . . . . . . 1 . . . . . . . . . 4 Guns 163 | . 10 19 9 . 10 25 . . 3 11 3 8 6 . 4 1 22 17 2 . . 3 1 1 2 . 1 5 Cannons 174 | . . 1 10 10 13 10 14 25 . . . . . . . 1 10 12 3 5 . 2 . 1 8 . 11 38 AOE 114 | . . 4 . 14 . 3 3 9 . 12 . 3 7 . . . 5 4 13 . . 13 . . 4 . 3 17 Classes Destroyed 23 | 1 6 3 . 2 2 3 . 2 . . . . . . . . . 1 . 1 . . . . . . 1 1 Worker 29 | . 2 4 . . 1 . . . . . 1 . . . . 1 . 7 . . . . . . . . . 13 Builder 22 | . . . . . 1 . . . . . . . . . . 4 . 9 . . . . 1 . . . . 7 Tunneler 4 | 1 . . . . . . . . . . . . . . . . . 1 . . . . 1 . . . . 1 Hauler 19 | . 2 4 5 . 3 . 2 . . . . . . . . . . 1 1 . . . . . . . . 1 Recycler 22 | . 1 4 3 . 5 . . . . . . . . . . . . 7 . . . . . . . . . 2 Mechanic 2 | . . . . . 1 . 1 . . . . . . . . . . . . . . . . . . . . . Operator 5 | . . 1 1 . . . 2 . 1 . . . . . . . . . . . . . . . . . . . Drone 2 | . . . . . . . . . . . . . . . . . . . . . . . . . . . 2 . Watcher 8 | . 2 . 1 1 1 . 2 . . . . . . . . . . . . . . . . . . . . 1 Swarmer 133 | . 3 7 3 15 7 14 2 14 1 4 . 3 2 . 4 . 18 3 4 . . 7 . . 2 . 9 11 Saboteur 2 | . . . . . . . . . . . . . . . . . . 2 . . . . . . . . . . Grunt 162 | . 8 10 9 5 12 14 9 2 . 15 1 3 7 . . 1 13 10 10 2 . 5 . 2 2 . 4 18 Brawler 21 | . . 1 . . 2 2 2 . . 1 . 1 1 . . . . 2 2 . . 2 1 . 2 . . 2 Duelist 14 | . . . . 1 1 2 . . . 1 . . . . . . 1 2 . . . 3 . . 2 . . 1 Protector 1 | . . . . . . 1 . . . . . . . . . . . . . . . . . . . . . . Sentry 51 | . . 6 8 2 1 4 3 8 2 . 1 . 2 . . . 1 . . 2 . 2 . . 3 . 1 5 Demolisher 1 | . . . . . . 1 . . . . . . . . . . . . . . . . . . . . . . Specialist 12 | . . . . . . . . 5 . . 1 . . . . . 2 . . . . . . . . . . 4 Hunter 40 | . . . . 2 1 . 1 2 . . . 3 . . 1 . 1 13 3 . . . . . 1 . . 12 Programmer 30 | . . . . . . . . 3 . 5 . 1 1 . . 1 1 4 . . . . . . . . . 14 Heavy 1 | . . . . . . . . . . . . . . . . . . . . . . . . . . . . 1 Behemoth 11 | . . . . . . 3 . . . . . 1 . . . 1 2 . . 1 . 1 . . . . 1 1 Elite 1 | . . . . . . . . . . . . . . . . . . . . 1 . . . . . . . . Thug 4 | . . . . . . . . . . . . . . . . . . . . . . . . . 4 . . . Butcher 1 | . . . . . . . . 1 . . . . . . . . . . . . . . . . . . . . Guerrilla 1 | . . . . . . . . . . . . . . . . . . . 1 . . . . . . . . . Best Kill Streak 19 | 1 4 7 8 4 13 7 5 6 1 8 2 4 9 . 4 4 8 19 6 3 . 9 2 2 7 . 4 11 Combat Bots Only 11 | . 2 6 3 4 11 7 4 6 1 8 1 4 9 . 4 1 8 7 5 3 . 9 1 2 7 . 4 7 Max Kills in Single Turn 11 | 1 1 4 2 4 2 3 4 5 1 3 1 3 2 . 2 1 3 11 4 1 . 5 2 1 2 . 3 7 Gunslinging 1 | . . . . . . 1 . . . . . 1 1 . 1 . . . . . . . . . . . . . Exploded 5 | . . 4 . 4 . 2 3 5 . 3 . 3 2 . . . 3 4 4 . . 5 . . 2 . 3 3 Melee 1 | . . . . . . . . . . 1 . . . . . . . 1 . . . . . . . . . 1 Uniques/NPCs Destroyed . | . . . . . . . . . . . . . . . . . . . . . . . . . . . . . Combat | -11 -10 -9 -9 -9 -8 -8 -8 -8 -8 -8 -7 -7 -7 -7 -6 -6 -6 -6 -6 -6 -6 -5 -5 -5 -5 -5 -4 -4 -------- Run | Yrd Mat Mat Sto Gar Mat Gar Mat Gar Mat Gar Fac Low Low Zio Pro Fac Gar Fac Low Low Dat Pro Fac Upp Upp Zhi Pro Fac Hostile Shots Fired 2892 | . 51 112 85 125 125 198 60 222 14 152 36 95 79 . 16 29 247 217 65 45 . 42 . 3 69 . 94 711 Missed 781 | . 9 24 17 37 26 61 24 47 5 48 8 27 24 . 6 9 71 50 15 12 . 11 . 3 9 . 18 220 Hits 2111 | . 42 88 68 88 99 137 36 175 9 104 28 68 55 . 10 20 176 167 50 33 . 31 . . 60 . 76 491 Melee 52 | . . 1 . 2 1 2 . 1 . 1 . 2 1 . . . 4 10 . . . . . . 1 . 22 4 Projectile 2059 | . 42 87 68 86 98 135 36 174 9 103 28 66 54 . 10 20 172 157 50 33 . 31 . . 59 . 54 487 AOE 10 | . 1 . . . . 4 . . . . . . . . . . . . . . . . . . . . 3 2 Critical Strikes 90 | . 1 1 1 . 4 7 1 4 2 6 . 4 1 . . 2 10 13 2 2 . 1 . . 3 . . 25 Actively Blocked 12 | . . . . . . . . . . . . . . . . . . . . . . . . . . . . 12 Part Disruptions 5 | . . . 1 . . . . . . 1 . 1 . . . . . . . . . . . . . . . 2 Damage Taken 35473 | . 705 1092 892 1420 1491 2821 561 2316 104 1285 282 1015 880 . 150 428 2993 3350 1011 465 . 875 . . 1242 . 1246 8849 Core 3802 | . 168 186 118 83 65 151 69 241 10 145 10 91 124 . . 20 323 318 37 39 . 38 . . 86 . 173 1307 Absorbed by Shields 1118 | . . . . 43 . . . 44 . . . . . . . . . . . . . . . . . . . 1031 Reduced by Siege Mode 635 | . . . . . . . . . . . . . . . . . 17 154 51 . . 6 . . 77 . 21 309 Ignored by Resistances 1633 | . . 3 . . . 28 . 153 29 313 40 217 119 . . 16 273 . 36 . . . . . . . . 406 Regen/Repaired (Parts) 2221 | . 103 195 . . . . . . . . . . . 1285 . . . . . . . . 638 . . . . . Core Remaining (%) 74 | 100 32 . . 75 . . . . . 70 . . . . 87 . . . . . . 78 . . . . 77 . Volleys Fired 1349 | 15 62 85 84 60 61 125 34 72 10 74 9 27 24 4 9 36 117 132 41 8 . 15 6 6 25 . 28 180 Largest 4 | 2 2 2 2 2 3 3 3 3 2 2 3 3 4 1 3 3 3 3 3 4 . 3 4 4 4 . 4 4 Hottest 383 | 60 100 106 136 136 192 214 195 195 138 140 209 209 266 69 213 241 241 276 170 306 . 176 266 266 344 . 354 383 Shots Fired 2989 | 30 119 167 155 100 174 338 98 142 20 132 27 83 52 4 17 64 281 268 64 31 . 38 12 12 85 . 86 390 Gun 1529 | 30 115 147 71 . 78 272 . 4 20 118 27 82 43 4 12 33 165 151 21 8 . 23 4 4 26 . 21 50 Cannon 1364 | . . 13 84 93 96 63 97 133 . . . . . . . 31 114 117 31 23 . 11 8 8 55 . 64 323 Launcher 95 | . 3 7 . 7 . 3 1 5 . 14 . 1 9 . 5 . 2 . 12 . . 4 . . 4 . 1 17 Special 1 | . 1 . . . . . . . . . . . . . . . . . . . . . . . . . . . Kinetic 191 | 15 34 76 66 . . . . . . . . . . . . . . . . . . . . . . . . . Thermal 2682 | 15 82 84 89 93 174 335 97 137 20 118 27 82 43 4 12 64 279 267 52 31 . 34 12 12 81 . 85 353 Explosive 62 | . 3 7 . 7 . 3 . 5 . 3 . 1 . . . . 2 . 5 . . 4 . . 4 . 1 17 Electromagnetic 54 | . . . . . . . 1 . . 11 . . 9 . 5 . . 1 7 . . . . . . . . 20 Robot Hit Streak 32 | 4 17 16 16 11 11 17 21 14 9 13 6 12 5 . 3 17 16 16 12 10 . 6 2 7 14 . 13 32 Robot Miss Streak 10 | 4 3 3 3 3 5 10 3 3 2 4 2 2 2 . 3 2 5 4 6 2 . 3 5 . 3 . 7 6 Penetration Max . | . . . . . . . . . . . . . . . . . . . . . . . . . . . . . Secondary Targets 21 | . . 3 . . . 5 . . . 3 1 4 1 . 1 . . 1 . . . . . . . . . 2 Max Gunslinging Chain 1 | . . 1 . . . 1 . . . 1 1 1 1 . 1 . . 1 . . . . . . . . . 1 Shots Hit Robots 1715 | 18 80 110 98 49 100 194 65 80 14 81 17 55 23 . 9 37 152 119 41 20 . 24 3 5 56 1 38 226 Core Hits 1091 | 4 31 50 37 33 51 72 35 38 5 49 10 24 28 . 4 16 74 112 65 12 . 63 14 4 40 . 28 192 Critical Kills 13 | . . . 1 . . 1 . 1 . . . . . . . . . 5 . . . . . . 1 . . 4 Critical Parts Destroyed 2 | . . . 1 . . . . . . . . . . . . . . 1 . . . . . . . . . . Critical Strikes 87 | . 9 8 2 . 8 12 . 1 . 9 2 4 1 . 1 . 5 9 1 1 . . . 1 3 . 2 8 Burn 68 | . 9 8 . . 8 11 . . . 9 2 4 1 . 1 . 5 3 1 1 . . . 1 2 . 2 . Meltdown 8 | . . . 1 . . 1 . 1 . . . . . . . . . . . . . . . . 1 . . 4 Destroy 7 | . . . 1 . . . . . . . . . . . . . . 6 . . . . . . . . . . Impale 4 | . . . . . . . . . . . . . . . . . . . . . . . . . . . . 4 Melee Attacks 41 | . . . . . . . . . . 2 . . . . . . 7 . . 1 . 2 . . . 1 2 26 Impact . | . . . . . . . . . . . . . . . . . . . . . . . . . . . . . Slashing 2 | . . . . . . . . . . 2 . . . . . . . . . . . . . . . . . . Piercing 39 | . . . . . . . . . . . . . . . . . 7 . . 1 . 2 . . . 1 2 26 Sneak Attacks 5 | . . . . . . . . . . . . . . . . . . . . . . . . . . . . 5 Combat Hostiles . | . . . . . . . . . . . . . . . . . . . . . . . . . . . . . Follow-up Attacks . | . . . . . . . . . . . . . . . . . . . . . . . . . . . . . Damage Inflicted 56640 | 177 1023 1763 1876 1630 2239 4298 2151 2893 289 3030 304 1286 1162 . 249 951 3782 6976 2183 466 . 1950 248 106 2436 . 1231 11941 Guns 18069 | 172 993 1382 779 . 884 3085 . 44 289 1549 304 1073 432 . 120 554 2191 2098 338 91 . 341 41 81 446 . 253 529 Cannons 20673 | . . 167 1068 962 1346 931 1830 2176 . . . . . . . 395 1149 1669 443 375 . 225 25 25 979 . 832 6076 Explosions 16601 | . . 184 . 668 . 265 304 673 . 1452 . 213 710 . 129 . 375 3152 1402 . . 1384 182 . 1011 . 146 4351 Melee 916 | . . . . . . . . . . 29 . . . . . . 67 . . . . . . . . . . 820 Ramming 381 | 5 30 30 29 . 9 17 17 . . . . . 20 . . 2 . 57 . . . . . . . . . 165 Kinetic 1564 | 83 277 477 727 . . . . . . . . . . . . . . . . . . . . . . . . . Thermal 37966 | 89 716 1072 1120 962 2230 4016 1998 2220 289 1771 304 1073 432 . 120 949 3340 4413 800 466 . 566 66 106 1425 . 1085 6338 Explosive 12245 | . . 184 . 668 . 265 . 673 . 253 . 213 . . . . 375 1953 1025 . . 1384 . . 1011 . 146 4095 Electromagnetic 3568 | . . . . . . . 136 . . 977 . . 710 . 129 . . 553 358 . . . 182 . . . . 523 Impact . | . . . . . . . . . . . . . . . . . . . . . . . . . . . . . Slashing 29 | . . . . . . . . . . 29 . . . . . . . . . . . . . . . . . . Piercing 887 | . . . . . . . . . . . . . . . . . 67 . . . . . . . . . . 820 Highest Corruption 32 | . . 2 . 7 12 29 . 7 7 8 1 11 22 3 2 2 2 14 11 17 17 17 . . . . 32 27 Average Corruption 9 | . . 2 . 7 11 17 . 6 7 7 1 6 16 3 2 1 2 10 11 17 17 17 . . . . 28 9 Corruption Purged . | . . . . . . . . . . . . . . . . . . . . . . . . . . . . . Corruption Blocked . | . . . . . . . . . . . . . . . . . . . . . . . . . . . . . Effects 580 | . . 17 . 8 32 41 . 60 8 58 . 26 77 3 6 3 22 64 3 21 5 32 . . . . 41 53 Message Errors 127 | . . 7 . 1 7 7 . 12 2 18 . 4 11 . . 1 3 17 1 5 1 9 . . . . 8 13 Matter Fused 129 | . . 1 . 3 5 8 . 14 4 12 . 7 18 2 1 1 6 14 1 4 . 5 . . . . 13 10 Heat Flow Errors 62 | . . 3 . . 4 7 . 11 1 3 . 3 5 1 . . 1 6 . 3 1 6 . . . . 4 3 Energy Discharges 64 | . . 3 . 2 2 3 . 6 . 6 . 4 10 . 1 . 3 8 . 2 1 3 . . . . 7 3 Parts Rejected 10 | . . . . . . . . . . 1 . . 1 . 1 . 1 4 1 . . . . . . . . 1 Parts Fused 15 | . . . . 1 . 2 . . . 1 . . 3 . . . 2 2 . 1 . 1 . . . . 1 1 Data Loss (minor) 70 | . . 1 . 1 5 5 . 9 . 7 . 3 13 . 1 1 . 5 . 3 1 6 . . . . 3 6 Data Loss (major) 25 | . . . . . . 2 . 4 . 2 . 2 4 . 1 . 2 1 . . 1 . . . . . . 6 Misfires 27 | . . 2 . . . . . 1 1 3 . 3 5 . . . 1 3 . 1 . . . . . . 2 5 Alerts 23 | . . . . . 1 1 . 3 . 2 . . 4 . 1 . 2 2 . . . 2 . . . . 3 2 Misdirections 3 | . . . . . 2 . . . . . . . . . . . . . . . . . . . . . . 1 Weapon Failures 25 | . . . . . 6 6 . . . 3 . . 3 . . . 1 2 . 2 . . . . . . . 2 Overload Shots 1 | . . . . . . . . . . . . . . . . . . . . . . 1 . . . . . . Overflow Damage 1421 | . . . . . . 13 37 106 . 17 . . 19 . . . 30 489 35 . . 11 . . 32 . 38 594 Projectiles 387 | . . . . . . 13 37 40 . . . . . . . . 30 73 35 . . . . . 32 . 38 89 Explosions 751 | . . . . . . . . 66 . 17 . . 5 . . . . 416 . . . 11 . . . . . 236 Melee 283 | . . . . . . . . . . . . . 14 . . . . . . . . . . . . . . 269 Knockbacks 1 | . . . . . . . . . . . . . . . . . . 1 . . . . . . . . . . Impact 1 | . . . . . . . . . . . . . . . . . . 1 . . . . . . . . . . Kinetic . | . . . . . . . . . . . . . . . . . . . . . . . . . . . . . Secondary . | . . . . . . . . . . . . . . . . . . . . . . . . . . . . . Self-Inflicted Damage 1274 | . . 11 . . . 19 . 32 . . . . 82 . . . 75 379 113 . . 238 . . . . . 325 Shots 44 | . . 1 . . . 1 . 1 . . . . 3 . . . 4 8 6 . . 11 . . . . . 9 Rammed 31 | 1 4 5 4 . . 1 2 . . . . . 1 . . . . 5 . . . . . . . . . 8 Targets Rammed 36 | 1 6 5 4 . 2 1 2 . . . . . 1 . . 1 . 5 . . . . . . . . . 8 Kicked . | . . . . . . . . . . . . . . . . . . . . . . . . . . . . . Crushed 5 | . 2 . . . 2 . . . . . . . . . . 1 . . . . . . . . . . . . Highest Temperature 679 | 40 166 340 336 45 382 369 69 199 79 144 261 679 249 58 138 192 385 341 . 450 139 242 105 157 429 . 416 639 Average Temperature 106 | 16 45 102 114 10 128 94 13 68 26 60 115 138 70 34 69 50 86 123 . 152 88 74 59 82 212 . 171 181 Received Heat Transfer 7967 | . 300 456 363 106 675 972 234 611 63 567 93 515 231 . . 42 754 267 264 135 . 96 . . 351 . 114 758 Effects 34 | . . 2 1 . 2 . . . . . . 6 . . . . 2 . . 2 . . . . 5 . 5 9 Shutdowns 15 | . . . . . 1 . . . . . . 2 . . . . 1 . . . . . . . 4 . 3 4 Energy Bleed 5 | . . . 1 . . . . . . . . 1 . . . . 1 . . 1 . . . . 1 . . . Interference 2 | . . 1 . . . . . . . . . . . . . . . . . . . . . . . . 1 . Matter Decay 3 | . . . . . . . . . . . . . . . . . . . . 1 . . . . . . 1 1 Short Circuit 2 | . . 1 . . . . . . . . . . . . . . . . . . . . . . . . . 1 Damage (minor) 2 | . . . . . 1 . . . . . . . . . . . . . . . . . . . . . . 1 Damage (major) 4 | . . . . . . . . . . . . 3 . . . . . . . . . . . . . . . 1 Damage (core) 1 | . . . . . . . . . . . . . . . . . . . . . . . . . . . . 1 Siege Activations 38 | . . . . . . . . . . . . . . . . . 6 9 5 1 . 1 . . 3 . 5 8 Total Turns 482 | . . . . . . . . . . . . . . . . . 75 111 40 6 . 11 . . 58 . 46 135 Longest Duration 34 | . . . . . . . . . . . . . . . . . 30 34 19 6 . 11 . . 26 . 12 34 Martial Activations . | . . . . . . . . . . . . . . . . . . . . . . . . . . . . . Shielding Activations . | . . . . . . . . . . . . . . . . . . . . . . . . . . . . . Robots Disrupted 2 | . . . . . . . . . . . . . . . . . . 1 . . . . 1 . . . . . Combat Hostiles 1 | . . . . . . . . . . . . . . . . . . . . . . . 1 . . . . . Robots Corrupted 6 | . . . . . . . . . . 1 . . . . 1 . . 2 1 . . . . . . . . 1 Combat Hostiles 5 | . . . . . . . . . . 1 . . . . 1 . . 2 1 . . . . . . . . . Parts Fried 18 | . . . . . . . . . . 2 . . 3 . 2 . . 4 3 . . . . . . . . 4 Impact Corruptions 4 | . . . . . . . . . . . . . 3 . . . . . . . . . . . . . . 1 Robots Melted 21 | . 1 2 1 1 1 3 . 1 . 1 . 1 . . . 1 . . 1 . . . . . 2 . 1 4 Combat Hostiles 18 | . 1 . 1 1 1 3 . 1 . 1 . 1 . . . 1 . . 1 . . . . . 2 . 1 3 Parts Melted 165 | . 5 9 4 4 11 18 2 9 1 10 2 9 2 . . 6 16 14 1 2 . . 1 2 9 . 4 24 Heat Transferred 65681 | 200 2775 2876 2035 1718 4773 8378 2616 3106 555 3765 814 2405 906 . 296 1369 5724 6028 1451 729 . 870 111 259 2380 . 1762 7780 Parts Sabotaged 1 | . . . . . . . . . . . . . . . . . . 1 . . . . . . . . . . Parts Stolen 2 | . . . . . . . . . . . . . . . . . . . . . . . . . . . 2 . Parts Stripped . | . . . . . . . . . . . . . . . . . . . . . . . . . . . . . Power Chain Reactions 10 | . . . . . . . 2 . . 3 . . 2 . . . . 1 1 . . . . . . . . 1 Alert | -11 -10 -9 -9 -9 -8 -8 -8 -8 -8 -8 -7 -7 -7 -7 -6 -6 -6 -6 -6 -6 -6 -5 -5 -5 -5 -5 -4 -4 ------- Run | Yrd Mat Mat Sto Gar Mat Gar Mat Gar Mat Gar Fac Low Low Zio Pro Fac Gar Fac Low Low Dat Pro Fac Upp Upp Zhi Pro Fac Maximum Alert Level 5 | . . . 1 3 2 5 4 5 4 5 3 . . . . . 5 5 . . . . 1 . . . . 5 Low Security (%) 37 | 100 100 100 96 1 . . . . . . . . . . . 100 12 . . . . . 93 . . . . 59 Level 1 4 | . . . 3 29 40 2 . . . . . . . . . . 4 . . . . . 6 . . . . 3 Level 2 7 | . . . . 43 59 16 . . . 13 . . . . . . 8 . . . . . . . . . . 5 Level 3 19 | . . . . 25 . 22 58 14 91 26 100 . . . . . 28 42 . . . . . . . . . 5 Level 4 18 | . . . . . . 29 41 18 8 35 . . . . . . 29 44 . . . . . . . . . 24 Level 5 13 | . . . . . . 29 . 67 . 23 . . . . . . 16 13 . . . . . . . . . 1 High Security . | . . . . . . . . . . . . . . . . . . . . . . . . . . . . . Max Security . | . . . . . . . . . . . . . . . . . . . . . . . . . . . . . Peak Influence 2551 | 5 93 190 206 993 604 2136 1439 2551 1243 1830 1082 . . . . 56 2031 1841 . . . . 218 . . . . 1790 Initial 1243 | . . . 70 131 483 384 1041 931 1243 653 960 . . . . 56 18 1066 . . . . 23 . . . . 35 Average 756 | . 23 110 137 574 402 1260 1089 1782 976 1268 1002 . . . . 39 998 1196 . . . . 36 . . . . 486 Influence Increases 19930 | 5 382 870 662 942 675 2002 946 1680 340 1297 312 280 359 . 150 141 2151 1501 459 132 . 480 283 196 432 5 365 2883 Destroy 0b10 Robot/C 10620 | . 220 480 400 500 480 880 440 740 160 580 200 240 300 . 100 60 780 720 420 120 . 400 100 140 380 . 320 1460 Destroy 0b10 Robot/NC 680 | 5 35 65 50 5 60 10 90 5 10 . 15 . . . . 25 5 125 5 . . 5 15 . . 5 5 140 Destroy Leader 1566 | . 58 138 142 20 98 30 128 50 62 50 42 40 30 . 20 30 50 132 30 10 . 30 22 10 20 . 40 284 Allied During Kill 400 | . . . . . . 19 14 37 52 6 39 . 14 . . . . . 4 2 . 45 54 46 32 . . 36 Successful Hack 186 | . 10 11 4 . 6 . . 46 26 14 . . . . . . 26 15 . . . . 16 . . . . 12 Disable Machine 1065 | . 15 30 45 45 30 30 30 45 . 45 15 . . . . . 75 360 . . . . 60 . . . . 240 Anti-Garrison Action 3300 | . . . . 300 . 850 . 700 . 550 . . . . . . 900 . . . . . . . . . . . Destroy Structure 1199 | . 14 40 6 72 1 78 36 27 . 37 1 . . . . 11 150 134 . . . . 16 . . . . 576 Partial Spotted 30 | . 15 . 15 . . . . . . . . . . . . . . . . . . . . . . . . . Lose Combat Pursuer 570 | . 15 . . . . 105 . 30 30 15 . . 15 . 30 15 165 15 . . . . . . . . . 135 Miscellaneous 314 | . . 106 . . . . 208 . . . . . . . . . . . . . . . . . . . . . Influence Decreases 18176 | 5 382 701 629 151 1076 458 1649 562 1886 472 1070 1075 636 . 60 204 147 1713 1293 492 625 442 135 382 340 97 308 1186 Entered New Map 8158 | . . . 99 71 510 208 1095 502 1308 352 870 397 53 . . 34 9 965 674 188 625 . 15 69 . 92 . 22 Time Decay 7545 | 5 352 506 530 . 356 . 404 . 278 . 170 628 543 . 60 160 . 668 589 294 . 415 120 293 320 5 293 556 Lost Part 1371 | . 30 40 . 80 60 150 . 60 . 20 10 50 40 . . 10 138 80 10 10 . 20 . . . . 15 548 Lost Ally 347 | . . . . . . 100 . . . 100 20 . . . . . . . 20 . . 7 . 20 20 . . 60 Purge Threat 755 | . . 155 . . 150 . 150 . 300 . . . . . . . . . . . . . . . . . . . Squads Dispatched 71 | . 2 3 2 . 6 . 5 . 1 . 3 . 1 . . 1 . 17 . . . 1 2 . 1 . . 26 Investigation 4 | . 1 1 . . . . . . . . 1 . . . . . . . . . . . . . . . . 1 Extermination 13 | . . . . . . . . . . . 1 . . . . . . 4 . . . . 1 . . . . 7 Reinforcement 26 | . 1 2 2 . 1 . 2 . . . 1 . . . . 1 . 5 . . . . 1 . . . . 10 Assault 16 | . . . . . 2 . 1 . . . . . 1 . . . . 5 . . . 1 . . 1 . . 5 Garrison 12 | . . . . . 3 . 2 . 1 . . . . . . . . 3 . . . . . . . . . 3 Intercept . | . . . . . . . . . . . . . . . . . . . . . . . . . . . . . Searches Triggered . | . . . . . . . . . . . . . . . . . . . . . . . . . . . . . Data Miner Redirects 5 | . . . . . . . . . . . . . . . . . . . . . . . . . . . . 5 Construction Impeded 6 | . . . . . . . . . . . . . . . . . . 2 . . . . . . . . . 4 Haulers Reinforced 1 | . . . . . . . . . . . . . . . . . . 1 . . . . . . . . . . Active Scanning Responses . | . . . . . . . . . . . . . . . . . . . . . . . . . . . . . Cargo Convoy Interrupts . | . . . . . . . . . . . . . . . . . . . . . . . . . . . . . Stealth | -11 -10 -9 -9 -9 -8 -8 -8 -8 -8 -8 -7 -7 -7 -7 -6 -6 -6 -6 -6 -6 -6 -5 -5 -5 -5 -5 -4 -4 --------- Run | Yrd Mat Mat Sto Gar Mat Gar Mat Gar Mat Gar Fac Low Low Zio Pro Fac Gar Fac Low Low Dat Pro Fac Upp Upp Zhi Pro Fac Distress Signals 33 | . 5 4 2 . 4 2 1 . 2 . 1 . . . . 1 . 2 . . . . . . . . 1 8 Communications Jammed 55 | . . . . . . . . . . . . . . . . . . 1 . . . . . . . . . 54 Distress Signals 54 | . . . . . . . . . . . . . . . . . . 1 . . . . . . . . . 53 Times Spotted 658 | . 26 35 28 22 37 52 28 36 11 30 9 12 18 . 7 5 49 52 21 8 . 21 6 7 19 . 15 104 Peak Tracking Total 11 | . 3 6 4 4 11 6 5 7 3 6 4 3 6 . 4 2 7 5 5 3 . 9 2 4 7 . 4 10 Tactical Retreats 23 | . 1 . . . . 3 . 2 1 1 . . 1 . 1 1 5 1 . . . . . . . . . 6 Traps | -11 -10 -9 -9 -9 -8 -8 -8 -8 -8 -8 -7 -7 -7 -7 -6 -6 -6 -6 -6 -6 -6 -5 -5 -5 -5 -5 -4 -4 ------- Run | Yrd Mat Mat Sto Gar Mat Gar Mat Gar Mat Gar Fac Low Low Zio Pro Fac Gar Fac Low Low Dat Pro Fac Upp Upp Zhi Pro Fac Traps Triggered 31 | . 1 . 1 4 . . . 8 . 7 1 . . . . . 6 1 . . . . . . . . . 2 Indirectly 2 | . . . . . . . . . . 2 . . . . . . . . . . . . . . . . . . Trap Hack Attempts . | . . . . . . . . . . . . . . . . . . . . . . . . . . . . . Triggered . | . . . . . . . . . . . . . . . . . . . . . . . . . . . . . Disarmed . | . . . . . . . . . . . . . . . . . . . . . . . . . . . . . Reprogrammed . | . . . . . . . . . . . . . . . . . . . . . . . . . . . . . Reused . | . . . . . . . . . . . . . . . . . . . . . . . . . . . . . Traps Extracted . | . . . . . . . . . . . . . . . . . . . . . . . . . . . . . Installed . | . . . . . . . . . . . . . . . . . . . . . . . . . . . . . Triggered . | . . . . . . . . . . . . . . . . . . . . . . . . . . . . . Machines | -11 -10 -9 -9 -9 -8 -8 -8 -8 -8 -8 -7 -7 -7 -7 -6 -6 -6 -6 -6 -6 -6 -5 -5 -5 -5 -5 -4 -4 ---------- Run | Yrd Mat Mat Sto Gar Mat Gar Mat Gar Mat Gar Fac Low Low Zio Pro Fac Gar Fac Low Low Dat Pro Fac Upp Upp Zhi Pro Fac Machines Disabled 101 | . 1 2 3 7 2 9 2 8 . 10 1 1 1 . . . 10 24 . . . . 4 . . . . 16 Max in Single Turn 8 | . 1 1 1 1 1 2 1 1 . 1 . 1 1 . . . 2 8 . . . . 2 . . . . 4 Garrison Access 1 | . . . . . . . . . . . . . . . . . . 1 . . . . . . . . . . Garrison Relay 24 | . . . . 4 . 5 . 5 . 6 . . . . . . 4 . . . . . . . . . . . Phase Generator 3 | . . . . . . 1 . . . 1 . . . . . . 1 . . . . . . . . . . . Machines Repaired . | . . . . . . . . . . . . . . . . . . . . . . . . . . . . . Machines Dismantled 1 | . . . . . . . . . . 1 . . . . . . . . . . . . . . . . . . Machines Sabotaged . | . . . . . . . . . . . . . . . . . . . . . . . . . . . . . Overloaded Fab Kills . | . . . . . . . . . . . . . . . . . . . . . . . . . . . . . Hacking | -11 -10 -9 -9 -9 -8 -8 -8 -8 -8 -8 -7 -7 -7 -7 -6 -6 -6 -6 -6 -6 -6 -5 -5 -5 -5 -5 -4 -4 --------- Run | Yrd Mat Mat Sto Gar Mat Gar Mat Gar Mat Gar Fac Low Low Zio Pro Fac Gar Fac Low Low Dat Pro Fac Upp Upp Zhi Pro Fac Machines Accessed 68 | . 6 6 3 1 3 2 3 3 8 4 1 . 1 . . 1 2 4 1 1 3 . 3 1 . 4 . 7 Terminals 43 | . 5 5 2 1 2 2 2 3 4 4 . . . . . . 2 2 . 1 . . 2 . . . . 6 Fabricators . | . . . . . . . . . . . . . . . . . . . . . . . . . . . . . Repair Stations 6 | . 1 1 . . . . . . 1 . 1 . . . . . . . . . . . 1 . . . . 1 Recycling Units . | . . . . . . . . . . . . . . . . . . . . . . . . . . . . . Scanalyzers 3 | . . . . . . . . . 2 . . . . . . . . 1 . . . . . . . . . . Garrison Access 6 | . . . 1 . 1 . 1 . 1 . . . . . . 1 . 1 . . . . . . . . . . Total Hacks 155 | . 11 16 6 2 7 4 4 6 20 8 3 . 1 . . 1 3 6 1 2 23 . 4 1 . 16 . 10 Successful 99 | . 4 10 3 1 3 2 2 4 9 1 1 . 1 . . 1 3 3 1 2 23 . 4 1 . 16 . 4 Failed 55 | . 7 6 3 1 4 2 2 2 10 7 2 . . . . . . 3 . . . . . . . . . 6 Catastrophic 11 | . . . 1 . . . . 1 1 2 1 . . . . . . 2 . . . . . . . . . 3 Database Lockouts 1 | . . . . . . . . . 1 . . . . . . . . . . . . . . . . . . . Manual 52 | . 11 8 5 . 4 . 1 2 8 2 . . . . . . 1 3 . . . . 2 . . . . 5 Terminals 85 | . 9 12 5 2 5 4 3 6 13 8 . . . . . . 3 3 . 2 . . 2 . . . . 8 Fabricators . | . . . . . . . . . . . . . . . . . . . . . . . . . . . . . Repair Stations 15 | . 2 4 . . . . . . 2 . 3 . . . . . . . . . . . 2 . . . . 2 Recycling Units . | . . . . . . . . . . . . . . . . . . . . . . . . . . . . . Scanalyzers 6 | . . . . . . . . . 4 . . . . . . . . 2 . . . . . . . . . . Garrison Access 7 | . . . 1 . 2 . 1 . 1 . . . . . . 1 . 1 . . . . . . . . . . Terminal Hacks 63 | . 2 3 . 1 1 2 1 2 3 1 . . 1 . . . 2 . 1 2 23 . 1 1 . 16 . . Record 12 | . . . . . . . . . . . . . . . . . . . . 2 6 . . . . 4 . . Part Schematic 16 | . 1 . . . . . . . . . . . . . . . . . . . 11 . . . . 4 . . Robot Schematic 4 | . 1 . . . . . . . . . . . . . . . . . . . 3 . . . . . . . Robot Analysis 4 | . . . . . . . . . . . . . . . . . . . . . . . . . . 4 . . Prototype ID Bank 7 | . . . . . . . . . . . . . . . . . . . . . 3 . . . . 4 . . Open Door 5 | . . . . . . 1 . 1 . . . . 1 . . . . . 1 . . . . 1 . . . . Branch Access Points 1 | . . . . . . . . . . . . . . . . . . . . . . . 1 . . . . . Emergency Access Points 1 | . . . . . . . . . . . . . . . . . 1 . . . . . . . . . . . Unreport Threat 6 | . . 2 . . 1 . 1 . 2 . . . . . . . . . . . . . . . . . . . Hauler Manifests 2 | . . 1 . . . . . . 1 . . . . . . . . . . . . . . . . . . . Garrison Registry 3 | . . . . 1 . 1 . . . 1 . . . . . . . . . . . . . . . . . . Patrol Navigation 1 | . . . . . . . . 1 . . . . . . . . . . . . . . . . . . . . Security Stations 1 | . . . . . . . . . . . . . . . . . 1 . . . . . . . . . . . Fabricator Hacks . | . . . . . . . . . . . . . . . . . . . . . . . . . . . . . Repair Station Hacks 11 | . 2 4 . . . . . . 1 . 1 . . . . . . . . . . . 2 . . . . 1 Scan Component 7 | . 1 2 . . . . . . 1 . 1 . . . . . . . . . . . 1 . . . . 1 Repair 4 | . 1 2 . . . . . . . . . . . . . . . . . . . . 1 . . . . . Recycling Unit Hacks . | . . . . . . . . . . . . . . . . . . . . . . . . . . . . . Scanalyzer 3 | . . . . . . . . . 2 . . . . . . . . 1 . . . . . . . . . . Retrieve Study 3 | . . . . . . . . . 2 . . . . . . . . 1 . . . . . . . . . . Garrison Access Hacks 6 | . . . 1 . 1 . 1 . 1 . . . . . . 1 . 1 . . . . . . . . . . Unlock Access 5 | . . . 1 . 1 . 1 . 1 . . . . . . 1 . . . . . . . . . . . . Seal Access 1 | . . . . . . . . . . . . . . . . . . 1 . . . . . . . . . . Unauthorized Hacks 16 | . . 3 2 . 1 . . 2 2 . . . . . . . 1 1 . . . . 1 . . . . 3 Terminals 16 | . . 3 2 . 1 . . 2 2 . . . . . . . 1 1 . . . . 1 . . . . 3 Botnet 15 | . . 2 2 . 1 . . 2 2 . . . . . . . 1 1 . . . . 1 . . . . 3 Operators 1 | . . 1 . . . . . . . . . . . . . . . . . . . . . . . . . . Fabricators . | . . . . . . . . . . . . . . . . . . . . . . . . . . . . . Repair Stations . | . . . . . . . . . . . . . . . . . . . . . . . . . . . . . Recycling Units . | . . . . . . . . . . . . . . . . . . . . . . . . . . . . . Scanalyzers . | . . . . . . . . . . . . . . . . . . . . . . . . . . . . . Garrison Access . | . . . . . . . . . . . . . . . . . . . . . . . . . . . . . Data Cores Recovered 1 | . . . . . . . . . 1 . . . . . . . . . . . . . . . . . . . Used . | . . . . . . . . . . . . . . . . . . . . . . . . . . . . . Hacking Detections 46 | . 5 6 2 1 3 1 2 2 6 4 1 . . . . . 2 2 . . . . 2 . . . . 7 Full Trace Events 5 | . . 1 . . . 1 . 1 . 1 1 . . . . . . . . . . . . . . . . . Feedback Events 1 | . . . . . . . . . . . 1 . . . . . . . . . . . . . . . . . Corruption 1 | . . . . . . . . . . . 1 . . . . . . . . . . . . . . . . . Feedback Blocked . | . . . . . . . . . . . . . . . . . . . . . . . . . . . . . Robot Schematics Acquired 8 | . 1 . . . . . . . . . . . . 4 . . . . . . 3 . . . . . . . Robots Built . | . . . . . . . . . . . . . . . . . . . . . . . . . . . . . Authchips . | . . . . . . . . . . . . . . . . . . . . . . . . . . . . . Time . | . . . . . . . . . . . . . . . . . . . . . . . . . . . . . Total Robot Build Rating . | . . . . . . . . . . . . . . . . . . . . . . . . . . . . . Part Schematics Acquired 31 | . 1 . . . . . . . . . . . . 15 . . . . . . 11 . . . . 4 . . Parts Built . | . . . . . . . . . . . . . . . . . . . . . . . . . . . . . Authchips . | . . . . . . . . . . . . . . . . . . . . . . . . . . . . . Time . | . . . . . . . . . . . . . . . . . . . . . . . . . . . . . Total Part Build Rating . | . . . . . . . . . . . . . . . . . . . . . . . . . . . . . Part Studies Acquired 3 | . . . . . . . . . 2 . . . . . . . . 1 . . . . . . . . . . Parts Repaired 4 | . 1 2 . . . . . . . . . . . . . . . . . . . . 1 . . . . . Time 112 | . 26 52 . . . . . . . . . . . . . . . . . . . . 34 . . . . . Parts Recycled . | . . . . . . . . . . . . . . . . . . . . . . . . . . . . . Recycled Matter . | . . . . . . . . . . . . . . . . . . . . . . . . . . . . . Retrieved Matter . | . . . . . . . . . . . . . . . . . . . . . . . . . . . . . Retrieved Components . | . . . . . . . . . . . . . . . . . . . . . . . . . . . . . Parts Scanalyzed . | . . . . . . . . . . . . . . . . . . . . . . . . . . . . . Part Schematics Acquired . | . . . . . . . . . . . . . . . . . . . . . . . . . . . . . Parts Damaged . | . . . . . . . . . . . . . . . . . . . . . . . . . . . . . Bothacking | -11 -10 -9 -9 -9 -8 -8 -8 -8 -8 -8 -7 -7 -7 -7 -6 -6 -6 -6 -6 -6 -6 -5 -5 -5 -5 -5 -4 -4 ------------ Run | Yrd Mat Mat Sto Gar Mat Gar Mat Gar Mat Gar Fac Low Low Zio Pro Fac Gar Fac Low Low Dat Pro Fac Upp Upp Zhi Pro Fac Used RIF Installer . | . . . . . . . . . . . . . . . . . . . . . . . . . . . . . Robots Hacked . | . . . . . . . . . . . . . . . . . . . . . . . . . . . . . Non-combat . | . . . . . . . . . . . . . . . . . . . . . . . . . . . . . Combat . | . . . . . . . . . . . . . . . . . . . . . . . . . . . . . Robot Hacks Applied . | . . . . . . . . . . . . . . . . . . . . . . . . . . . . . Relay Couplers Released 98 | . . . . 15 . 19 . 20 . 26 . . . . . . 16 2 . . . . . . . . . . Machine Destruction 98 | . . . . 15 . 19 . 20 . 26 . . . . . . 16 2 . . . . . . . . . . Fabnet Peak Effective % . | . . . . . . . . . . . . . . . . . . . . . . . . . . . . . Robots Rewired 12 | . . . . . . . . 2 . 3 . . 2 . . . 1 . . . . 2 . . 2 . . . Allies Hacked . | . . . . . . . . . . . . . . . . . . . . . . . . . . . . . Hacks Repelled . | . . . . . . . . . . . . . . . . . . . . . . . . . . . . . Allies | -11 -10 -9 -9 -9 -8 -8 -8 -8 -8 -8 -7 -7 -7 -7 -6 -6 -6 -6 -6 -6 -6 -5 -5 -5 -5 -5 -4 -4 -------- Run | Yrd Mat Mat Sto Gar Mat Gar Mat Gar Mat Gar Fac Low Low Zio Pro Fac Gar Fac Low Low Dat Pro Fac Upp Upp Zhi Pro Fac Total Allies 39 | . . . . . . 6 1 2 5 3 3 . 3 . . . 1 . 3 . . 3 4 . 2 . . 3 Largest Group 5 | . . . . . . 4 1 2 5 3 4 . 3 1 1 . 1 . 2 1 . 3 4 4 2 2 2 3 Highest-Rated Group 196 | . . . . . . 51 90 56 80 95 162 . 125 30 30 . 116 . 86 43 . 155 196 196 98 59 59 117 Highest-Rated Ally 116 | . . . . . . 31 90 31 16 39 41 . 79 30 30 . 116 . 43 43 . 96 49 49 49 30 30 39 Initial Warlord ECA Mod 47 | . . . . . 9 9 19 19 28 28 38 38 38 38 37 37 37 47 47 47 47 46 46 46 46 46 45 45 Total Orders 5 | . . . . . . . . . . . 2 . . . . . . 2 . . . . 1 . . . . . STAY 1 | . . . . . . . . . . . 1 . . . . . . . . . . . . . . . . . FOLLOW 1 | . . . . . . . . . . . 1 . . . . . . . . . . . . . . . . . RETURN 3 | . . . . . . . . . . . . . . . . . . 2 . . . . 1 . . . . . Ally Attacks 291 | . . . . . . 26 16 11 42 29 21 . 13 . . . . . 9 6 . 34 19 19 8 . . 38 Total Damage 6369 | . . . . . . 378 563 144 508 389 597 . 293 . . . . . 167 204 . 920 700 603 272 . . 631 Kills 71 | . . . . . . 5 16 2 8 3 9 . 2 . . . . . 2 . . 3 5 6 3 . . 7 Allies Corrupted . | . . . . . . . . . . . . . . . . . . . . . . . . . . . . . Allies Melted . | . . . . . . . . . . . . . . . . . . . . . . . . . . . . . X0-1V1 Amusement Gains 382 | . 24 10 10 . 15 50 . 11 . . . 15 59 . . . 80 1 . . . 5 . . . . . 102 Good Acts 178 | . 2 14 4 6 2 13 5 5 4 9 4 9 9 . 7 1 5 13 5 . . 14 5 7 . . 8 27 Bad Acts 113 | . . 6 . 5 7 10 2 5 . 1 . 2 1 . 1 2 17 10 5 10 . . . 2 4 . 15 8 Intel | -11 -10 -9 -9 -9 -8 -8 -8 -8 -8 -8 -7 -7 -7 -7 -6 -6 -6 -6 -6 -6 -6 -5 -5 -5 -5 -5 -4 -4 ------- Run | Yrd Mat Mat Sto Gar Mat Gar Mat Gar Mat Gar Fac Low Low Zio Pro Fac Gar Fac Low Low Dat Pro Fac Upp Upp Zhi Pro Fac Active Infowar (turns) 18518 | 36 1168 2675 1483 296 . . . . . . . 2 . . . . 143 2564 1605 539 . 256 656 1361 1145 343 1838 2408 Optics 2934 | . . . . . . . . . . . . . . . . . 143 2564 227 . . . . . . . . . Sensors 971 | . . 2 . . . . . . . . . 2 . . . . . 331 . . . . 422 2 . . . 212 Terrain 2054 | . . . . . . . . . . . . . . . . . . . 1515 539 . . . . . . . . Seismic 5656 | 36 1168 2673 1483 296 . . . . . . . . . . . . . . . . . . . . . . . . Decoding 7740 | . . . . . . . . . . . . . . . . . . . . . . 256 656 1361 1145 343 1838 2141 Jamming 845 | . . . . . . . . . . . . . . . . . . 272 . . . . . . . . . 573 Robot Analysis Total 4 | . . . . . . . . . . . . . . . . . . . . . . . . . . 4 . . Derelict Logs Recovered 14 | . . . . . . . . . . . . 2 1 2 1 . . . 3 2 . . . . 2 . 1 . Drone Launches 3 | . . . . . . . . . . . . . . . . . . 2 . . . . 1 . . . . . Drone Recoveries 3 | . . . . . . . . . . . . . . . . . . 2 . . . . 1 . . . . . Decoded 0b10 Intel 85 | . . . . . . . . . . . . . . . . . . . . . . . 19 . . . . 66 Traps 13 | . . . . . . . . . . . . . . . . . . . . . . . 7 . . . . 6 Emergency Access 14 | . . . . . . . . . . . . . . . . . . . . . . . 3 . . . . 11 Items 38 | . . . . . . . . . . . . . . . . . . . . . . . 7 . . . . 31 Machines 9 | . . . . . . . . . . . . . . . . . . . . . . . 1 . . . . 8 Patrols 4 | . . . . . . . . . . . . . . . . . . . . . . . 1 . . . . 3 Guards 6 | . . . . . . . . . . . . . . . . . . . . . . . . . . . . 6 Exits 1 | . . . . . . . . . . . . . . . . . . . . . . . . . . . . 1 Exploration | -11 -10 -9 -9 -9 -8 -8 -8 -8 -8 -8 -7 -7 -7 -7 -6 -6 -6 -6 -6 -6 -6 -5 -5 -5 -5 -5 -4 -4 ------------- Run | Yrd Mat Mat Sto Gar Mat Gar Mat Gar Mat Gar Fac Low Low Zio Pro Fac Gar Fac Low Low Dat Pro Fac Upp Upp Zhi Pro Fac Turns Passed 44285 | 208 2829 2829 1493 1422 801 2436 972 2344 610 2072 342 2163 1856 2768 1244 328 2708 2564 1843 656 138 1429 656 1361 1145 343 1838 2887 Spaces Moved 18079 | 97 1073 914 471 493 215 770 241 814 256 785 146 968 813 1291 579 98 983 1123 1001 368 82 785 337 800 524 139 824 1089 Core 11 | 9 2 . . . . . . . . . . . . . . . . . . . . . . . . . . . Treads 17652 | 88 1071 914 471 493 215 770 241 814 256 785 146 968 813 1291 579 98 787 1123 1001 368 82 785 337 800 524 139 824 869 Legs 276 | . . . . . . . . . . . . . . . . . 196 . . . . . . . . . . 80 Wheels 140 | . . . . . . . . . . . . . . . . . . . . . . . . . . . . 140 Hover . | . . . . . . . . . . . . . . . . . . . . . . . . . . . . . Flight . | . . . . . . . . . . . . . . . . . . . . . . . . . . . . . Fastest Speed 50 | 50 160 160 240 240 240 240 243 240 200 203 205 202 202 210 210 161 161 165 165 162 162 162 165 165 165 165 164 120 Average Speed 207 | 149 233 261 240 241 244 246 322 246 213 211 205 207 208 210 210 181 209 175 165 163 162 165 165 165 193 233 199 180 Slowest Speed 850 | 160 850 480 240 246 246 320 323 323 240 246 205 243 210 210 210 207 285 250 165 165 162 243 165 165 235 243 235 320 Overloaded Moves . | . . . . . . . . . . . . . . . . . . . . . . . . . . . . . Propulsion Burnouts . | . . . . . . . . . . . . . . . . . . . . . . . . . . . . . Robots Hopped . | . . . . . . . . . . . . . . . . . . . . . . . . . . . . . Potential Cave-ins 2 | . . . . . . . . . . . . . . . . . . 2 . . . . . . . . . . Cave-ins Triggered 1 | . . . . . . . . . . . . . . . . . . 1 . . . . . . . . . . Exploration Rate (%) 61 | 5 96 60 65 77 22 77 28 84 31 79 7 95 95 85 73 4 95 38 94 59 68 88 12 94 86 59 83 36 Regions Visited 28 Branch Regions 13 Pre-discovered Areas 7 | . . . . . . . . . . . . 1 1 . . . . . . 1 1 . . . . 3 . . Known Exits Taken 18 | . . . 1 . 1 . 1 . 1 . 1 1 . . 1 1 . 1 1 1 1 1 1 1 1 1 1 . Unknown Exits Taken 5 | 1 1 1 . . . . . . . . . . 1 1 . . . . . . . . . . . . . . Scrap Searched 32 | . . . . . . . . . . . . 4 3 1 2 . . . 4 2 . 4 . 3 4 . 5 . Spaces Dug 105 | . . . . . . . 1 . . . . . . . . 7 . 39 4 3 . . 1 4 . . 5 41 Terrain Destroyed 1148 | . 22 41 . 29 1 91 22 22 . 17 . 16 8 . . 17 110 147 123 3 . 59 3 6 119 . 57 235 Melee 1 | . . . . . . . . . . . . . . . . . . . . . . . . . . . . 1 Projectile 296 | . . . . . 1 . 20 3 . . . . . . . 17 . 71 6 3 . 1 3 6 14 . 29 122 AOE 851 | . 22 41 . 29 . 91 2 19 . 17 . 16 8 . . . 110 76 117 . . 58 . . 105 . 28 112 Terrain Rammed . | . . . . . . . . . . . . . . . . . . . . . . . . . . . . . Walls Destroyed . | . . . . . . . . . . . . . . . . . . . . . . . . . . . . . Machines Disabled . | . . . . . . . . . . . . . . . . . . . . . . . . . . . . . Actions | -11 -10 -9 -9 -9 -8 -8 -8 -8 -8 -8 -7 -7 -7 -7 -6 -6 -6 -6 -6 -6 -6 -5 -5 -5 -5 -5 -4 -4 --------- Run | Yrd Mat Mat Sto Gar Mat Gar Mat Gar Mat Gar Fac Low Low Zio Pro Fac Gar Fac Low Low Dat Pro Fac Upp Upp Zhi Pro Fac Total 22328 | 132 1268 1204 691 619 353 1046 363 1013 302 1044 169 1058 931 1342 593 190 1393 1496 1122 400 89 885 426 835 592 155 950 1667 Wait 1130 | . 80 96 46 31 26 48 58 16 22 61 1 26 29 1 . 44 111 105 33 10 . 7 44 9 18 3 55 150 Move 18056 | 96 1072 913 471 492 215 769 241 813 256 784 145 967 812 1290 578 98 982 1122 1000 367 81 784 336 799 523 138 823 1089 Hop . | . . . . . . . . . . . . . . . . . . . . . . . . . . . . . Pick Up 393 | 13 24 34 13 7 14 31 5 16 3 15 4 8 11 6 2 2 32 37 9 2 1 12 6 8 3 . 14 61 Fast Attach 133 | . . 5 10 . 4 7 5 3 1 4 2 3 2 12 1 . 20 13 2 . . 2 2 2 3 6 3 21 Attach 210 | 7 4 10 . 10 9 22 . 8 . 4 3 5 5 . . 3 16 22 6 2 3 4 3 . . . 6 58 Detach 23 | . . . . . 2 2 . 1 . . . . . . . . 1 1 1 . 3 1 1 . 1 . . 9 Swap 349 | . 11 24 23 11 10 18 5 27 3 21 2 12 11 11 2 6 30 23 23 8 . 7 6 2 9 2 11 31 Drop 359 | . 9 32 40 1 10 23 13 15 7 12 3 10 6 18 1 . 38 36 7 2 1 13 3 9 3 5 8 34 Fire 1349 | 15 62 85 84 60 61 125 34 72 10 74 9 27 24 4 9 36 117 132 41 8 . 15 6 6 25 . 28 180 Melee 41 | . . . . . . . . . . 2 . . . . . . 7 . . 1 . 2 . . . 1 2 26 Ram 1 | . . . . . . . . . . . . . . . . . . . . . . . . . . . . 1 Kick . | . . . . . . . . . . . . . . . . . . . . . . . . . . . . . Crush 35 | 1 6 5 4 . 2 1 2 . . . . . 1 . . 1 . 5 . . . . . . . . . 7 Escape Stasis 37 | . . . . 7 . . . 12 . 11 . . . . . . 7 . . . . . . . . . . . Rewire 175 | . . . . . . . . 30 . 48 . . 20 . . . 32 . . . . 38 . . 7 . . . Trap . | . . . . . . . . . . . . . . . . . . . . . . . . . . . . . Miscellaneous 37 | . . . . . . . . . . 8 . . 10 . . . . . . . . . 19 . . . . . Route ------- -11/Scrapyard -10/Materials (discovered 5 exits: *Mat x3 / [*Min] / [*Sub]) -9/Materials (discovered 5 exits: *Mat x2 / Min / *Sto x2) -9/Storage -9/Garrison (discovered 3 exits: *Mat x3) -8/Materials -8/Garrison (discovered 3 exits: *Mat x3) -8/Materials (discovered 3 exits: *Fac x2 / Gar) -8/Garrison (discovered 4 exits: *Fac x3 / *Mat) -8/Materials (discovered 2 exits: *Fac / Gar) -8/Garrison (discovered 3 exits: *Fac x3) -7/Factory (discovered 2 exits: *Fac / *Low) -7/Lower Caves -7/Lower Caves (discovered 2 exits: *Fac / [*Zio]) -7/Zion -6/Proximity Caves -6/Factory (discovered 3 exits: Fac / Low / Gar) -6/Garrison (discovered 3 exits: *Fac x3) -6/Factory (discovered 3 exits: *Fac x2 / *Low) -6/Lower Caves -6/Lower Caves (discovered 2 exits: *Fac / *Dat) -6/Data Miner -5/Proximity Caves -5/Factory (discovered 3 exits: *Fac / *Upp x2) -5/Upper Caves -5/Upper Caves (discovered 2 exits: *Fac / *Zhi) -5/Zhirov -4/Proximity Caves -4/Factory (discovered 6 exits: *Res x4 / [*Ext] / Arm) History --------- Turn | Location | Event 6 | -11/Scrapyard | Discovered new exit (range 14) 209 | -11/Scrapyard | Entered Materials 305 | -10/Materials | Build established: Mutant 899 | -10/Materials | Discovered new exit (range 8) 1179 | -10/Materials | Discovered new exit (range 16) 1291 | -10/Materials | Core integrity fell below 50% 1435 | -10/Materials | Discovered new exit (range 10) 1512 | -10/Materials | Discovered new exit (range 16) 1545 | -10/Materials | Repaired Lgt. Treads 2775 | -10/Materials | Discovered new exit (range 6) 2788 | -10/Materials | Prayed at D.C.S.S. Altar Unit 3038 | -10/Materials | Entered another Materials area 3038 | -9/Materials | Evolved 2 slots: Propulsion x1, Utility x1 3155 | -9/Materials | X0-1V1 added 0b10 threat records associated with you (minor) 3443 | -9/Materials | Identified exit to Mines 3443 | -9/Materials | X0-1V1 revealed exit location to -9/Mines 3622 | -9/Materials | Discovered new exit (range 4) 3903 | -9/Materials | Core integrity restored by X0-1V1 (+100) 4163 | -9/Materials | Discovered new exit (range 7) 4199 | -9/Materials | X0-1V1 activates XOMVISION 4252 | -9/Materials | Discovered new exit (range 8) 4341 | -9/Materials | Utility slot count permanently improved by X0-1V1 (+1) 4584 | -9/Materials | Discovered new exit (range 15) 4660 | -9/Materials | Repaired Lgt. Treads 4687 | -9/Materials | Repaired Lgt. Treads 4734 | -9/Materials | Build established: Scavenger-Mutant 5153 | -9/Materials | X0-1V1 foreshadows a heat wave 5410 | -9/Materials | Ambient heat levels rising (+10) 5767 | -9/Materials | Ambient heat levels rising (+10) 5867 | -9/Materials | Entered Storage 6201 | -9/Storage | Build established: Mutant 6217 | -9/Storage | Heat dissipation permanently improved by X0-1V1 (+30; -150 max core) 7360 | -9/Storage | Identified exit to Garrison 7360 | -9/Storage | Entered Garrison 7430 | -9/Garrison | Core integrity restored by X0-1V1 (+55) 7536 | -9/Garrison | Triggered checkpoint 7576 | -9/Garrison | Garrison Relay disabled 7658 | -9/Garrison | Discovered new exit (range 83) 7658 | -9/Garrison | Discovered new exit (range 78) 7658 | -9/Garrison | Discovered new exit (range 56) 7796 | -9/Garrison | Triggered checkpoint 7850 | -9/Garrison | Triggered checkpoint 7950 | -9/Garrison | Garrison Relay disabled 8106 | -9/Garrison | Garrison Relay disabled 8199 | -9/Garrison | Triggered checkpoint 8232 | -9/Garrison | Core integrity permanently improved by X0-1V1 (+300) 8238 | -9/Garrison | X0-1V1 activates XOMVISION 8278 | -9/Garrison | Triggered checkpoint 8316 | -9/Garrison | X0-1V1 upgraded hostiles (x2) 8379 | -9/Garrison | Lost 6 parts (1p3n1u1w) 8415 | -9/Garrison | Triggered checkpoint 8469 | -9/Garrison | Garrison Relay disabled 8623 | -9/Garrison | X0-1V1 sent you into danger 8649 | -9/Garrison | X0-1V1 mutated your Utility slot to Power slot 8782 | -9/Garrison | Entered Materials 8782 | -8/Materials | Evolved 2 slots: Utility x1, Weapon x1 9051 | -8/Materials | Build established: Tank 9076 | -8/Materials | System corruption reached 10% 9254 | -8/Materials | Lost 5 parts (2p1n2u) 9288 | -8/Materials | Garrison activated, responded to threat 9317 | -8/Materials | Destroyed 11 combat bots 9478 | -8/Materials | Destroyed 9 combat bots 9582 | -8/Materials | First assault squad dispatched 9583 | -8/Materials | Identified exit to Garrison 9583 | -8/Materials | Entered Garrison 9619 | -8/Garrison | Triggered checkpoint 9623 | -8/Garrison | Build established: Scavenger-Tank 9631 | -8/Garrison | X0-1V1 upgraded hostiles (x1) 9685 | -8/Garrison | Destroyed 7 combat bots 9701 | -8/Garrison | Spotted B-75 Beast 9758 | -8/Garrison | Destroyed B-75 Beast 9788 | -8/Garrison | Lost 5 parts (2n2u1w) 9942 | -8/Garrison | Garrison Relay disabled 10005 | -8/Garrison | Triggered checkpoint 10083 | -8/Garrison | Discovered new exit (range 24) 10083 | -8/Garrison | Discovered new exit (range 72) 10083 | -8/Garrison | Discovered new exit (range 67) 10152 | -8/Garrison | Garrison Relay disabled 10241 | -8/Garrison | Spotted B-75 Beast 10266 | -8/Garrison | X0-1V1 sent allied B-36 Bruiser (x4) 10292 | -8/Garrison | Lost 5 parts (1p1n1u2w) 10345 | -8/Garrison | Destroyed B-75 Beast 10446 | -8/Garrison | Phase Generator disabled 10472 | -8/Garrison | Triggered checkpoint 10515 | -8/Garrison | Triggered checkpoint 10571 | -8/Garrison | Triggered checkpoint 10629 | -8/Garrison | Triggered checkpoint 10663 | -8/Garrison | Garrison Relay disabled 10995 | -8/Garrison | Triggered checkpoint 11015 | -8/Garrison | Garrison Relay disabled 11133 | -8/Garrison | X0-1V1 sent you into danger 11163 | -8/Garrison | Triggered checkpoint 11170 | -8/Garrison | Garrison Relay disabled 11271 | -8/Garrison | Spotted B-75 Beast 11298 | -8/Garrison | Destroyed B-75 Beast 11452 | -8/Garrison | Rescued a captive Derelict 11453 | -8/Garrison | Rescued a captive Derelict 11895 | -8/Garrison | Triggered checkpoint 12019 | -8/Garrison | Entered Materials 12019 | -8/Materials | Accompanied by 1 ally 12093 | -8/Materials | Identified exit to Factory 12093 | -8/Materials | X0-1V1 revealed exit location to -7/Factory 12399 | -8/Materials | X0-1V1 sent allied B-75 Beast (x1) 12485 | -8/Materials | Garrison activated, responded to threat 12565 | -8/Materials | Discovered exit to Factory (range 6) 12608 | -8/Materials | X0-1V1 added 0b10 threat records associated with you (considerable) 12819 | -8/Materials | First assault squad dispatched 12935 | -8/Materials | Garrison activated, responded to threat 12974 | -8/Materials | Core integrity restored by X0-1V1 (+161) 12991 | -8/Materials | Identified exit to Garrison 12991 | -8/Materials | Entered Garrison 13322 | -8/Garrison | Garrison Relay disabled 13324 | -8/Garrison | X0-1V1 mutated your Weapon slot to Propulsion slot 13491 | -8/Garrison | Triggered checkpoint 13505 | -8/Garrison | Triggered checkpoint 13516 | -8/Garrison | P-60 Hacker assimilated allied 55-9LI(g) 13650 | -8/Garrison | Build established: Scavenger-Mutant 13703 | -8/Garrison | Discovered exit to Factory (range 8) 13725 | -8/Garrison | Triggered checkpoint 13758 | -8/Garrison | Garrison Relay disabled 14062 | -8/Garrison | Discovered exit to Factory (range 15) 14125 | -8/Garrison | Triggered checkpoint 14167 | -8/Garrison | Discovered new exit (range 5) 14281 | -8/Garrison | Triggered checkpoint 14295 | -8/Garrison | Garrison Relay disabled 14527 | -8/Garrison | Triggered checkpoint 14635 | -8/Garrison | Triggered checkpoint 14664 | -8/Garrison | Garrison Relay disabled 14793 | -8/Garrison | X0-1V1 activates XOMVISION 14803 | -8/Garrison | Discovered exit to Factory (range 11) 14868 | -8/Garrison | Triggered checkpoint 14883 | -8/Garrison | Core integrity fell below 50% 15011 | -8/Garrison | Garrison Relay disabled 15335 | -8/Garrison | Entered Materials 15444 | -8/Materials | Core integrity restored by X0-1V1 (+196) 15623 | -8/Materials | X0-1V1 activates XOMVISION 15663 | -8/Materials | X0-1V1 sent you to a vault 15681 | -8/Materials | Discovered exit to Factory (range 16) 15813 | -8/Materials | Central database locked down 15915 | -8/Materials | Garrison activated, responded to threat 15945 | -8/Materials | Identified exit to Garrison 15945 | -8/Materials | Entered Garrison 15945 | -8/Garrison | Accompanied by 3 allies 16126 | -8/Garrison | Lost 3 allies 16195 | -8/Garrison | Triggered checkpoint 16232 | -8/Garrison | Garrison Relay disabled 16251 | -8/Garrison | Garrison Relay disabled 16453 | -8/Garrison | Destroyed 8 combat bots 16507 | -8/Garrison | Triggered checkpoint 16514 | -8/Garrison | X0-1V1 revealed exit location to -7/Factory 16626 | -8/Garrison | Discovered exit to Factory (range 10) 16667 | -8/Garrison | Triggered checkpoint 16685 | -8/Garrison | Garrison Relay disabled 16790 | -8/Garrison | Triggered checkpoint 16840 | -8/Garrison | X0-1V1 revealed exit location to -7/Factory 17155 | -8/Garrison | Triggered checkpoint 17184 | -8/Garrison | X0-1V1 destroyed Phase Generator 17184 | -8/Garrison | Phase Generator disabled 17245 | -8/Garrison | Garrison Relay disabled 17523 | -8/Garrison | Garrison Relay disabled 17844 | -8/Garrison | Core integrity restored by X0-1V1 (+119) 17861 | -8/Garrison | Triggered checkpoint 17899 | -8/Garrison | Garrison Relay disabled 17929 | -8/Garrison | X0-1V1 mutated your Propulsion slot to Utility slot 17935 | -8/Garrison | Discovered exit to Factory (range 35) 17935 | -8/Garrison | Discovered exit to Factory (range 32) 17935 | -8/Garrison | Discovered exit to Factory (range 61) 18017 | -8/Garrison | Entered Factory 18017 | -7/Factory | Accompanied by 1 ally 18017 | -7/Factory | Evolved 2 slots: Propulsion x1, Weapon x1 18046 | -7/Factory | X0-1V1 activates XOMVISION 18081 | -7/Factory | X0-1V1 sent you to a vault 18118 | -7/Factory | X0-1V1 released a cloud of subatomizers 18135 | -7/Factory | Discovered new exit (range 15) 18227 | -7/Factory | Identified exit to Factory 18268 | -7/Factory | Discovered new exit (range 5) 18276 | -7/Factory | Identified exit to Lower Caves 18359 | -7/Factory | Entered Lower Caves 18369 | -7/Lower Caves | X0-1V1 activates XOMVISION 18401 | -7/Lower Caves | Met a Warlord Commander 18402 | -7/Lower Caves | Learned location of Warlord (-4) 18403 | -7/Lower Caves | Warlord Commander delivered Encrypted Comm Array 18403 | -7/Lower Caves | Found Encrypted Comm Array 18435 | -7/Lower Caves | Build established: Scavenger-Gunner 18454 | -7/Lower Caves | Identified exit to Lower Caves 19051 | -7/Lower Caves | Spotted B-75 Beast 19085 | -7/Lower Caves | Destroyed B-75 Beast 19106 | -7/Lower Caves | Lost 4 parts (1p1n1u1w) 19180 | -7/Lower Caves | Learned 12 Factory zone layouts 20083 | -7/Lower Caves | Ambushed by research squad 20096 | -7/Lower Caves | System corruption reached 10% 20207 | -7/Lower Caves | Encountered a Warlord checkpoint 20522 | -7/Lower Caves | Entered another Lower Caves area 20541 | -7/Lower Caves | Discovered exit to Factory (range 10) 20660 | -7/Lower Caves | X0-1V1 mutated your Utility slot to Propulsion slot 20668 | -7/Lower Caves | Attracted the attention of an 0b10 checkpoint 20938 | -7/Lower Caves | Attracted the attention of an 0b10 outpost 20954 | -7/Lower Caves | Weapon slot count temporarily expanded by X0-1V1 (+4) 20983 | -7/Lower Caves | X0-1V1 sent allied Chaos Knight 2.0 (x1) 21006 | -7/Lower Caves | Lost 3 parts (1p1n1u) 21007 | -7/Lower Caves | Destroyed 9 combat bots 21812 | -7/Lower Caves | Encountered a Warlord checkpoint 22124 | -7/Lower Caves | Learned location of Zion (-7) 22307 | -7/Lower Caves | X0-1V1 activates XOMVISION 22351 | -7/Lower Caves | Discovered new exit (range 11) 22378 | -7/Lower Caves | Entered Zion 22378 | -7/Zion | Accompanied by 1 ally 22501 | -7/Zion | Discovered new exit (range 15) 22613 | -7/Zion | Found Unknown Piercing Weapon 22613 | -7/Zion | Identified CR-A16's Pointy Stick 22802 | -7/Zion | Learned Factory terminal intel 23691 | -7/Zion | Found Prototype Launcher 23691 | -7/Zion | Identified Rocket Array 23704 | -7/Zion | Found Prototype Launcher 23704 | -7/Zion | Identified Gui. Missile Launcher 24021 | -7/Zion | System corruption cleaned by Quarantine Array 24125 | -7/Zion | Build established: Scavenger-Mutant 24309 | -7/Zion | Met Imprinter 24380 | -7/Zion | Acquired unknown access codes intercepted by a Zionite 24471 | -7/Zion | Learned Factory stockpile data 24492 | -7/Zion | Given the Hacking Drone Bay 24508 | -7/Zion | Build established: Scavenger-Gunner 24727 | -7/Zion | Visited the Megawrench Repair Shop 24727 | -7/Zion | Megawrench repaired 12 parts 24935 | -7/Zion | Found Prototype Device 24936 | -7/Zion | Identified Hacking Drone Bay 25146 | -7/Zion | Entered Proximity Caves 25146 | -6/Proximity Caves | Accompanied by 1 ally 25607 | -6/Proximity Caves | X0-1V1 activates XOMVISION 26273 | -6/Proximity Caves | Discovered exit to Factory (range 11) 26317 | -6/Proximity Caves | X0-1V1 activates XOMVISION 26390 | -6/Proximity Caves | Entered Factory 26390 | -6/Factory | Evolved 2 slots: Propulsion x1, Utility x1 26391 | -6/Factory | Identified exit to Lower Caves 26392 | -6/Factory | Identified exit to Factory 26394 | -6/Factory | Loaded intel: 26 terminal locations 26572 | -6/Factory | X0-1V1 enhanced Transport squad support 26654 | -6/Factory | Spotted B-75 Beast 26670 | -6/Factory | Destroyed B-75 Beast 26718 | -6/Factory | Identified exit to Garrison 26718 | -6/Factory | Entered Garrison 26934 | -6/Garrison | Garrison Relay disabled 27100 | -6/Garrison | Lost 3 parts (1p2n) 27216 | -6/Garrison | Triggered checkpoint 27217 | -6/Garrison | Destroyed 8 combat bots 27284 | -6/Garrison | Triggered checkpoint 27664 | -6/Garrison | Spotted B-90 Cyclops 27664 | -6/Garrison | X0-1V1 sent you into danger 27700 | -6/Garrison | Revealed the true nature of CR-A16's Pointy Stick 27703 | -6/Garrison | Destroyed B-90 Cyclops 27733 | -6/Garrison | Lost 4 parts (2n1u1w) 27857 | -6/Garrison | X0-1V1 mutated your Propulsion slot to Utility slot 27857 | -6/Garrison | Rewired B-86 Titan 27869 | -6/Garrison | X0-1V1 rewrote Titan 5a IFF filter 27869 | -6/Garrison | Spotted Titan 5a 27873 | -6/Garrison | X0-1V1 upgraded hostiles (x1) 27873 | -6/Garrison | Spotted B-90 Cyclops 27874 | -6/Garrison | Destroyed B-90 Cyclops 27948 | -6/Garrison | Discovered new exit (range 8) 28018 | -6/Garrison | Triggered checkpoint 28090 | -6/Garrison | Heavy support dispatched to Factory 28171 | -6/Garrison | Phase Generator disabled 28172 | -6/Garrison | Build established: Scavenger-Tank 28188 | -6/Garrison | Garrison Relay disabled 28227 | -6/Garrison | Learned Factory security intel 28234 | -6/Garrison | X0-1V1 activates XOMVISION 28380 | -6/Garrison | Triggered checkpoint 28542 | -6/Garrison | Triggered checkpoint 28570 | -6/Garrison | Garrison Relay disabled 28607 | -6/Garrison | Discovered new exit (range 10) 28946 | -6/Garrison | Triggered checkpoint 29000 | -6/Garrison | Discovered new exit (range 11) 29182 | -6/Garrison | H-XX Assembler disabled 29426 | -6/Garrison | Entered Factory 29636 | -6/Factory | Discovered exit to Lower Caves (range 17) 29647 | -6/Factory | X0-1V1 announced a LAN party 29815 | -6/Factory | X0-1V1 enhanced Transport squad support 30126 | -6/Factory | First assault squad dispatched 30240 | -6/Factory | Crushed by falling debris 30240 | -6/Factory | System corruption reached 10% 30265 | -6/Factory | Destroyed 7 combat bots 30271 | -6/Factory | Lost 4 parts (1p2u1w) 30630 | -6/Factory | Core integrity fell below 50% 30792 | -6/Factory | Discovered exit to Factory (range 12) 30847 | -6/Factory | Build established: Scavenger-Gunner 30944 | -6/Factory | Found Prototype Processor 30944 | -6/Factory | Identified Exp. Targeting Computer 30960 | -6/Factory | Found Exp. Targeting Computer 30987 | -6/Factory | X0-1V1 activates XOMVISION 31300 | -6/Factory | X0-1V1 revealed exit location to -5/Factory 31443 | -6/Factory | Garrison activated, responded to threat 31548 | -6/Factory | Build established: Scavenger-Skirmisher 31990 | -6/Factory | Entered Lower Caves 32217 | -6/Lower Caves | Forcibly received Sfc. Transmogifier from X0-1V1 32304 | -6/Lower Caves | Identified exit to Lower Caves 32667 | -6/Lower Caves | Learned location of 1 exit from Lower Caves 32827 | -6/Lower Caves | X0-1V1 sent hostile H-66 Slayer (x3) 32861 | -6/Lower Caves | Build established: Scavenger-Tank 33405 | -6/Lower Caves | X0-1V1 sent hostile Guerrilla (x2) 33408 | -6/Lower Caves | X0-1V1 sent allied Elite (x3) 33627 | -6/Lower Caves | Encountered a Warlord checkpoint 33821 | -6/Lower Caves | X0-1V1 activates XOMVISION 33833 | -6/Lower Caves | Entered another Lower Caves area 33833 | -6/Lower Caves | Accompanied by 1 ally 34021 | -6/Lower Caves | Spotted B-75 Beast 34034 | -6/Lower Caves | Destroyed B-75 Beast 34135 | -6/Lower Caves | X0-1V1 rewrote 6H-IKQ(E) IFF filter 34169 | -6/Lower Caves | X0-1V1 mutated your Utility slot to Weapon slot 34288 | -6/Lower Caves | X0-1V1 sent hostile Y-54 Guardian (x1) 34371 | -6/Lower Caves | Attracted the attention of an 0b10 checkpoint 34373 | -6/Lower Caves | X0-1V1 upgraded hostiles (x2) 34475 | -6/Lower Caves | Learned Factory stockpile data 34481 | -6/Lower Caves | Discovered new exit (range 5) 34488 | -6/Lower Caves | Identified exit to Data Miner 34489 | -6/Lower Caves | Entered Data Miner 34492 | -6/Data Miner | Discovered new exit (range 6) 34533 | -6/Data Miner | Met Data Miner 34561 | -6/Data Miner | Learned location of Section 7 (-2) 34561 | -6/Data Miner | Acquired the access code to Warlord's prototype stash 34586 | -6/Data Miner | Received God Mode back door access code from Data Miner 34622 | -6/Data Miner | Identified exit to Proximity Caves 34627 | -6/Data Miner | Entered Proximity Caves 34629 | -5/Proximity Caves | Attracted the attention of an 0b10 outpost 34662 | -5/Proximity Caves | Destroyed 9 combat bots 34732 | -5/Proximity Caves | Attracted the attention of an 0b10 checkpoint 34733 | -5/Proximity Caves | Escorted by Enhanced Grunt 34915 | -5/Proximity Caves | Core integrity restored by X0-1V1 (+280) 35167 | -5/Proximity Caves | X0-1V1 revealed exit location to -5/Factory 35238 | -5/Proximity Caves | X0-1V1 activates XOMVISION 35243 | -5/Proximity Caves | Core integrity restored by X0-1V1 (+280) 35635 | -5/Proximity Caves | Spotted B-75 Beast 35641 | -5/Proximity Caves | Destroyed B-75 Beast 35744 | -5/Proximity Caves | Found Prototype Device 35744 | -5/Proximity Caves | Identified Exp. Thermal Shield 35832 | -5/Proximity Caves | X0-1V1 activates XOMVISION 36056 | -5/Proximity Caves | Entered Factory 36056 | -5/Factory | Evolved 2 slots: Power x1, Utility x1 36306 | -5/Factory | Repaired Arm. Heavy Treads 36429 | -5/Factory | Identified exit to Upper Caves 36516 | -5/Factory | X0-1V1 sent you to a vault 36646 | -5/Factory | Discovered new exit (range 8) 36679 | -5/Factory | X0-1V1 activates XOMVISION 36712 | -5/Factory | Entered Upper Caves 36712 | -5/Upper Caves | Accompanied by 4 allies 36781 | -5/Upper Caves | Identified exit to Upper Caves 36781 | -5/Upper Caves | X0-1V1 revealed exit location to -5/Upper Caves 36797 | -5/Upper Caves | Encountered a Warlord checkpoint 38073 | -5/Upper Caves | Entered another Upper Caves area 38073 | -5/Upper Caves | Accompanied by 2 allies 38075 | -5/Upper Caves | Attracted the attention of an 0b10 checkpoint 38133 | -5/Upper Caves | Discovered new exit (range 14) 38347 | -5/Upper Caves | X0-1V1 vaporized surrounding terrain (radius 22) 38396 | -5/Upper Caves | Found DCF Scrap (15 items) 38557 | -5/Upper Caves | Learned Factory garrison access intel 38656 | -5/Upper Caves | X0-1V1 rewrote Sentinel 6d IFF filter 38735 | -5/Upper Caves | X0-1V1 sent hostile Thug (x4) 38878 | -5/Upper Caves | Learned 8 Factory zone layouts 38966 | -5/Upper Caves | Attracted the attention of an 0b10 outpost 39018 | -5/Upper Caves | Destroyed 7 combat bots 39104 | -5/Upper Caves | Discovered new exit (range 8) 39114 | -5/Upper Caves | Identified exit to Zhirov 39218 | -5/Upper Caves | Entered Zhirov 39218 | -5/Zhirov | Accompanied by 2 allies 39218 | -5/Zhirov | Discovered new exit (range 3) 39261 | -5/Zhirov | Met Zhirov 39303 | -5/Zhirov | Learned location of Quarantine (-2) 39303 | -5/Zhirov | Learned location of Testing (-3) 39303 | -5/Zhirov | Learned location of Command (-1) 39324 | -5/Zhirov | Zhirov requested help retrieving the SGEMP Prototype 39360 | -5/Zhirov | Found Alien Artifact 39360 | -5/Zhirov | Identified Integrated Reactor 39360 | -5/Zhirov | Installed Integrated Reactor, increased core energy generation (+10) 39555 | -5/Zhirov | Identified exit to Proximity Caves 39561 | -5/Zhirov | Entered Proximity Caves 39561 | -4/Proximity Caves | Accompanied by 2 allies 39572 | -4/Proximity Caves | Attracted the attention of an 0b10 checkpoint 39674 | -4/Proximity Caves | X0-1V1 activates XOMVISION 40104 | -4/Proximity Caves | X0-1V1 sent hostile D-63 Destroyer (x1) 40241 | -4/Proximity Caves | System corruption reached 10% 40401 | -4/Proximity Caves | System corruption reached 30% 40659 | -4/Proximity Caves | Particle Reactor reconfigured into Item Mimic 40707 | -4/Proximity Caves | Build established: Derelict-Tank 40730 | -4/Proximity Caves | X0-1V1 mutated your Weapon slot to Propulsion slot 40766 | -4/Proximity Caves | Spotted B-86 Titan 40766 | -4/Proximity Caves | X0-1V1 sent you into danger 40773 | -4/Proximity Caves | Destroyed B-86 Titan 41029 | -4/Proximity Caves | Build established: Scavenger-Tank 41082 | -4/Proximity Caves | Identified exit to Factory 41082 | -4/Proximity Caves | X0-1V1 revealed exit location to -4/Factory 41190 | -4/Proximity Caves | X0-1V1 activates XOMVISION 41204 | -4/Proximity Caves | Learned Research emergency access door positions 41374 | -4/Proximity Caves | Build established: Derelict-Tank 41399 | -4/Proximity Caves | Entered Factory 41399 | -4/Factory | Evolved 2 slots: Utility x1, Weapon x1 41400 | -4/Factory | Identified exit to Research 41401 | -4/Factory | Loaded intel: 4 garrison access locations 41462 | -4/Factory | Watched by a mysterious "MATRIX" hacker 41736 | -4/Factory | X0-1V1 activates XOMVISION 41764 | -4/Factory | Incoming investigation squad redirected 41874 | -4/Factory | X0-1V1 sent you to a vault 41898 | -4/Factory | Spotted B-86 Titan 41900 | -4/Factory | X0-1V1 downgraded hostiles (x1) 41900 | -4/Factory | Spotted B-75 Beast 41905 | -4/Factory | Destroyed B-75 Beast 41944 | -4/Factory | Identified exit to Armory 42093 | -4/Factory | Discovered new exit (range 11) 42185 | -4/Factory | Build established: Scavenger-Tank 42283 | -4/Factory | Found Prototype Launcher 42283 | -4/Factory | Identified Mni. Smartbomb Launcher 42332 | -4/Factory | X0-1V1 vaporized surrounding terrain (radius 17) 42363 | -4/Factory | Found Unknown Protection 42363 | -4/Factory | Identified Hvy. Reflective Plating 42465 | -4/Factory | X0-1V1 activates XOMVISION 42567 | -4/Factory | X0-1V1 revealed exit location to -3/Research 42766 | -4/Factory | X0-1V1 revealed exit location to -3/Research 42830 | -4/Factory | X0-1V1 activates XOMVISION 43198 | -4/Factory | X0-1V1 enhanced Transport squad support 43357 | -4/Factory | X0-1V1 sent allied Guerrilla (x3) 43397 | -4/Factory | Lost 10 parts (2p4n2u2w) 43460 | -4/Factory | Discovered exit to Research (range 12) 43486 | -4/Factory | Lost 3 allies 43579 | -4/Factory | Weapon slot count temporarily expanded by X0-1V1 (+2) 43599 | -4/Factory | Core integrity fell below 50% 43621 | -4/Factory | Lost 16 parts (3p5n4u4w) 43629 | -4/Factory | Destroyed 7 combat bots 43649 | -4/Factory | First assault squad dispatched 43675 | -4/Factory | Incoming assault squad redirected 43787 | -4/Factory | System corruption reached 10% 43822 | -4/Factory | Garrison activated, responded to threat 43865 | -4/Factory | Lost 11 parts (1p4n3u3w) 43918 | -4/Factory | Incoming assault squad redirected 43923 | -4/Factory | Incoming assault squad redirected 44007 | -4/Factory | Core integrity fell below 20% 44052 | -4/Factory | Lost 6 parts (2p2n1u1w) 44174 | -4/Factory | Incoming assault squad redirected 44174 | -4/Factory | X0-1V1 blocked Data Miner access to 0b10 dispatch routers 44286 | -4/Factory | Destroyed by G-67 Veteran with Field Laser Last Messages --------------- K-01 Serf destroyed. S-27 Virus destroyed. ALERT: Construction progress impeded, dispatching reinforcements to local area. C-45 Heavy ARC bursts open, deploying its payload. G-73 Enforcer unfolds itself. L-61 Swordsman unfolds itself. G-67 Veteran unfolds itself. I-47 Archangel unfolds itself. Flexi-carbon Leg destroyed. K-01 Serf collects debris. Rocket intercepted. U-05 Engineer builds a Wall. Lgt. Antimatter Reactor destroyed. Hpw. Shock Rifle destroyed. L-61 Swordsman suffers critical hit (Destroy). Field Laser destroyed. Com. Wheel destroyed. X0-1V1 chortles! Map ----- +----------------------------------------------------+ | ?????????????????????????????????????????????????? | | ?????????????????????????????????????????????????? | | ?????????????????????????????????????????????????? | | ?????????????????????????????????????????????????? | | ?????????????????????????????????????????????????? | | ?????????????????????????????????????????????????? | | ?????????????????????????????????????????????????? | | ?????????????????????????????????????????????????? | | ?????????????????????????????????????????????????? | | ?????????????????????????????????????????????????? | | ?????????????????????????????????????????????????? | | ??????????????????? ?????????????????????????????? | | ?????????????????? ????????????????????????????? | | ?????????????????? ????????????????????????????? | | ??????????????????? ????????????????????????????? | | ??????????????????? ????????????????????????????? | | ??????????????????? ????????????????????????????? | | ???? ????????????? ????????????????????????????? | | ??? ?????????????? ????????? ??????????????????? | | ##/######## ########+########+#####??????????????? | | #??????????????? | | u #??????????????? | | #??????????????? | | #??????????????? | | #??????????????? | | p @ % #????????????? | | p% * ==[ #???????????? | | T#####????# # ####+## %* #???????????? | | ###???????????## u ## = [ ?????????? | | #????# = % ! # l s ?????????? | | #?????# #### % ""k ##? g ????????? | | #?????????????# """"!#?? g ?????????? | | #????######???# ! """"=#??? g% = ?????????? | | #????" #???# """"%#??? ?????????? | | #????# #???# """"!#???? i ??????????? | | +????# #???# """"!#???? ??????????? | | #????# #???# """"!#????? # #???????????? | | #????# #???# #?????# ??????????????? | | ######## #???# #???????????????????????? | | ! + #???# ! #???????????????????????? | | #### #???# ! #???????????????????????? | | #??# #???# ! #???????????????????????? | | %"#?# #???# #???????????????????????? | | "#?# #???# #??????????? ????????? | | "#?# #???# #######+## #???????? | | "#?# #???# + #???????? | | "#?# #???########## #???????? | | ##?# %##############[ #???????? | | #??#!% % % ! ! % #???????? | | #??# % %! #################### #???????? | +----------------------------------------------------+ Best States ------------- Heat Dissipation 171 Energy Generation 63 Energy Capacity 2595 Matter Stores 1100 Matter Capacity 1100 Sight Range 25 Robot Scan Range 16 Terrain Scan Range 20 Terrain Scan Density 10 Jamming Range 16 Armor Coverage 1200 Resistance: KI 30 Resistance: TH 30 Resistance: EM 25 Phase Shifting 15 Evasion (%) 55 Targeting Accuracy 12 Core Analysis 6 Recoil Reduction 6 Matter Filtering 50 Particle Charging 25 Offensive Hacking 12 Item Schematics ----------------- Huge Storage Unit | -10/Materials | Hacked Adv. Heat Sink | -7/Zion | Archive Transmission Jammer | -7/Zion | Archive Imp. Cooling System | -7/Zion | Archive Adv. Terrain Scanner | -7/Zion | Archive Hpw. Shock Rifle | -7/Zion | Archive Gatling Laser | -7/Zion | Archive Hvy. Ion Cannon | -7/Zion | Archive Imp. Medium Treads | -7/Zion | Archive Adv. Assault Cannon | -7/Zion | Archive Enh. Optical Array | -7/Zion | Archive Imp. Field Recycling Unit | -7/Zion | Archive Hvy. Plasma Cannon | -7/Zion | Archive Plasma Cannon | -7/Zion | Archive Arm. Medium Treads | -7/Zion | Archive Remote Force Field | -7/Zion | Archive Combat Drone Bay | -6/Data Miner | Free Lgt. Regenerative Plating | -6/Data Miner | Free Cld. Gravmag System | -6/Data Miner | Free Imp. Thermal Defense Suite | -6/Data Miner | Free Imp. KE Penetrator | -6/Data Miner | Free Imp. Antigrav System | -6/Data Miner | Free Adv. Thermal Shield | -6/Data Miner | Free Matter Neutralizer | -6/Data Miner | Free Imp. Corruption Screen | -6/Data Miner | Free Adv. Remote Datajack | -6/Data Miner | Free Adv. Recalibrator | -6/Data Miner | Free Assault Drone Bay | -5/Zhirov | Free Exp. Heat Sink | -5/Zhirov | Free Exp. Optical Array | -5/Zhirov | Free Imp. Arc Thrower | -5/Zhirov | Free Robot Schematics ------------------ M-13 Machinist | -10/Materials | Hacked R-06 Scavenger | -7/Zion | Archive S-27 Virus | -7/Zion | Archive B-36 Bruiser | -7/Zion | Archive Y-72 Warden | -7/Zion | Archive Y-64 Sentinel | -6/Data Miner | Free B-48 Gladiator | -6/Data Miner | Free H-66 Slayer | -6/Data Miner | Free Fabricated ------------ Nothing Repaired ---------- Lgt. Treads | 26% | -10/Materials Lgt. Treads | 22% | -9/Materials Lgt. Treads | 38% | -9/Materials Arm. Heavy Treads | 29% | -5/Factory Studied --------- Lgt. Treads | -8/Materials | Hacked Arm. Treads | -8/Materials | Hacked Arm. Medium Treads | -6/Factory | Hacked Alien Tech Used ----------------- Integrated Reactor Achievements -------------- Special Forces Challenges ------------ None Game ------ Seed SubdwellerAlertKatana Manual? 0 Play Time 05:26:18 Cumulative 517.4 hours Start 2026.07.21 @ 13:03:58 End 2026.07.22 @ 00:42:22 Sessions 5 Manual Loads 0 Difficulty Rogue Special Mode None Game No. 299 Rogue 299 Adventurer 0 Explorer 0 Win Type - Total 34 Types 17/1/7/2/1/1/1/1/1/2 Lore% 95 Gallery% 91 Achievement% 84 Wizard Run 0 Options --------- Layout 1 ASCII 0 Keyboard 0 Movement Numpad Keybinds 0 Fullscreen 1 Font 24/Proggy Map View 50x35 Zoom Use 0% Tactical HUD 0 Map Filters NONE Filters NONE Steam 1 RUN: 322ba494-75de-45ac-9a5d-35c7bfc1564d